{"text_format":"1","workbook":"xlsx","n_sheets":7,"sheets":["Instructions","Entry Sheet","Bill Print","Calculation sheet","Goswara","Annual Report","Montly Dakk"],"not_rendered":{"charts":0,"images":0,"macros":1,"external_links":1,"defined_names":4,"comments":1,"pivot_tables":0},"unopened":[],"bounds":{"document_bytes":16777216,"sheet_cells":100000,"rows_first":2000,"rows_last":500,"rows_between":2000,"halvings":0,"cell_chars":16384,"cell_head_chars":4096},"cells_cut":0,"cells_raw":0,"read":"whole","date_system":"1900"}

{"sheet":"Instructions","index":0,"n_rows":10,"n_cols":1,"rows_kept":10,"cut":false,"hidden":false,"merged":[]}
["Instructions"]
["Kindly read All Instructions before Use Report Card Utitly"]
["1. To Fill All Required Data Use  Entry Sheet "]
["2. Fill Data only In Yellow Cell."]
["3. Select Month , Year And Day on Which Kheer is prepared for students"]
["4. in Entry Sheet Enter Date wise No. of Students to whom Served Meal (Yellow Cells). Left Cell Blank On Holidays "]
["5. Now Goto Bill Print Sheet To Print Bill. There are two option First Auto Bill - No Need To do any think just take print or Make pdfSecond is Custom Bill - Where you can Fill Custom rate of items. I Custom Bill you have to Match Bill Amount with Montly cost "]
["6. Calculation Sheet is Just to Show Daily And Mothly Consumtion of Various Items Used in MDM"]
["7. If any Query/Suggestion Please Email Us at abhi072011@gmail.com"]
["8. Visit Website for More Tools  WWW.TeachersHelp.in"]

{"sheet":"Entry Sheet","index":1,"n_rows":66,"n_cols":21,"rows_kept":66,"cut":false,"hidden":false,"merged":[[34,0,35,0],[34,1,35,1],[4,7,4,8],[2,14,2,16],[4,14,4,15],[6,14,6,15],[32,0,33,0],[32,1,33,1],[2,7,2,8],[2,11,2,13],[4,11,4,12],[6,11,6,12],[6,7,6,8],[36,0,37,0],[36,1,37,1],[38,0,39,0],[38,1,39,1],[0,14,0,15],[12,0,12,1],[8,3,8,13],[0,7,0,13],[0,0,0,6],[7,7,7,8],[9,3,9,11],[11,4,11,7],[11,11,11,12],[2,1,2,5],[4,1,4,5],[6,1,6,5]]}
["ਮਿਡ-ਡੇ-ਮੀਲ kYlkulytr (A`pr pRwiemrI)",null,null,null,null,null,null,"ਇਸ ਐਂਟਰੀ ਸ਼ੀਟ ਦੇ ਪੀਲੇ ਖਾਨਿਆਂ ਵਿੱਚ twiep kਰੋ ਅਤੇ ਬਾਕੀ ਸ਼ੀਟਸ ਦੇ ਪ੍ਰਿੰਟ ਪ੍ਰਾਪਤ ਕਰੋ",null,null,null,null,null,null,"Cooking Cost Per Student",null,10.17]
[]
["ਸਕੂਲ    :","srkwrI hweI skUl ",null,null,null,null,null,"ਮਹੀਨਾ:",null,"Jun",null,"Anwj dw ਮੁਢਲਾ ਬਕਾਇਆ",null,null,"ies mhIny pRwpq Anwj"]
[]
["blwk   :","KMnw",null,null,null,null,null,"ਸਾਲ:",null,2026,null,"kxk (ਕਿਲੋਗ੍ਰਾਮ):",null,100,"kxk (ਕਿਲੋਗ੍ਰਾਮ):",null,0]
[]
["ਜਿਲ੍ਹਾ    :","luiDAwxw",null,null,null,null,null,"ਖੀਰ ਬਣਾਉਣ ਵਾਲਾ ਦਿਨ :",null,"Tue",null,"cwvl  (ਕਿਲੋਗ੍ਰਾਮ):",null,200,"cwvl (ਕਿਲੋਗ੍ਰਾਮ):",null,0]
[null,null,null,null,null,null,null,"PrUt dyx dw idn :",null,"Fri"]
[null,null,null,"imf-fy-mIl sbMDI Anwj dw stwk Aqy Kpq rijstr ( jmwq 6 qo 8)",null,null,null,null,null,null,null,null,null,null,null,"Total Working Day",{"$f":"COUNTIF(H15:H45,\">0\")","v":0}]
[null,null,null,{"$f":"B3&\"   \"&\" blwk \"&\"  \"&B5&\" \"&\"  ijlHw  \"& \"  \"&B7 & \" \"","v":"srkwrI hweI skUl     blwk   KMnw   ijlHw    luiDAwxw "},null,null,null,null,null,null,null,null,{"$f":"J3","v":"Jun"},{"$f":"J5","v":2026},null,null,null,null,null,"Satrt Date",{"$f":"DATEVALUE(1&J3&J5)","v":"2026-06-01"}]
[]
[null,null,null,"imqI","Bojn Kwx vwly ividAwrQI",null,null,null,"kxk","cwvl","shI"," mYbrW vlO nrIKx",null,"irmwks",null,null,null,null,null,"End Date",{"$f":"EOMONTH(U10,0)","v":"2026-06-30"}]
["mhIny dorwn AOsqn dwKl ividAwrQI \ndI igxqI:-",null,null,null,6,7,8,"ku`l","K`pq 150 gRwm pRiq ivid","K`pq 150 gRwm pRiq ivid.",null,"nW","hsqwKr"]
[null,null,null,null,"hwjr","hwjr","hwjr","hwjr","iklo ivc","iklo iv`c",null,null,null,null,null,null,null,{"$f":"SUM(H15:H21)","v":0},null,null,"Jan"]
["mhIny dy surU ivc muFlw bkwieAw",null,null,{"$f":"U10","v":"2026-06-01"},null,null,null,{"$f":"SUM(E15:G15)","v":0},{"$f":"'Calculation sheet'!L7","v":0},{"$f":"'Calculation sheet'!M7","v":0},null,null,null,null,null,null,null,{"$f":"SUM(H22:H28)","v":0},{"$f":"IF(ISBLANK((D15)),\"None\",TEXT(D15,\"DDD\"))","v":"Mon"},"Mon","Feb"]
["kxk (iklo iv`c)","cwvl (iklo iv`c)",null,{"$f":"IF(D15<$U$12,D15+1,\"\")","v":"2026-06-02"},null,null,null,{"$f":"SUM(E16:G16)","v":0},{"$f":"'Calculation sheet'!L8","v":0},{"$f":"'Calculation sheet'!M8","v":0},null,null,null,null,null,null,null,{"$f":"SUM(H29:H35)","v":0},{"$f":"IF(ISBLANK((D16)),\"None\",TEXT(D16,\"DDD\"))","v":"Tue"},"Tue","Mar"]
[{"$f":"N5","v":100},{"$f":"N7","v":200},null,{"$f":"IF(D16<$U$12,D16+1,\"\")","v":"2026-06-03"},null,null,null,0,{"$f":"'Calculation sheet'!L9","v":0},{"$f":"'Calculation sheet'!M9","v":0},null,null,null,null,null,null,null,{"$f":"SUM(H36:H42)","v":0},"Wed","Wed","Apr"]
[null,null,null,"2026-06-04",null,null,null,0,{"$f":"'Calculation sheet'!L10","v":0},{"$f":"'Calculation sheet'!M10","v":0},null,null,null,null,null,null,null,{"$f":"SUM(H43:H45)","v":0},"Thu","Thu","May"]
[" pRwpq      kxk","cwvl",null,"2026-06-05",null,null,null,0,{"$f":"'Calculation sheet'!L11","v":0},{"$f":"'Calculation sheet'!M11","v":0},null,null,null,null,null,null,null,null,"Fri","Fri","Jun"]
[{"$f":"Q5","v":0},{"$f":"Q7","v":0},null,"2026-06-06",null,null,null,0,{"$f":"'Calculation sheet'!L12","v":0},{"$f":"'Calculation sheet'!M12","v":0},null,null,null,null,null,null,null,null,"Sat","Sat","Jul"]
[null,null,null,"2026-06-07",null,null,null,0,{"$f":"'Calculation sheet'!L13","v":0},{"$f":"'Calculation sheet'!M13","v":0},null,null,null,null,null,null,null,null,"Sun",null,"Aug"]
["joV        kxk","cwvl",null,"2026-06-08",null,null,null,0,{"$f":"'Calculation sheet'!L14","v":0},{"$f":"'Calculation sheet'!M14","v":0},null,null,null,null,null,null,null,null,"Mon",null,"Sep"]
[{"$f":"A17+A20","v":100},{"$f":"B17+B20","v":200},null,"2026-06-09",null,null,null,0,{"$f":"'Calculation sheet'!L15","v":0},{"$f":"'Calculation sheet'!M15","v":0},null,null,null,null,null,null,null,null,"Tue",null,"Oct"]
[null,null,null,"2026-06-10",null,null,null,0,{"$f":"'Calculation sheet'!L16","v":0},{"$f":"'Calculation sheet'!M16","v":0},null,null,null,null,null,null,null,null,"Wed",null,"Nov"]
["mhIny dorwn Kpq",null,null,"2026-06-11",null,null,null,0,{"$f":"'Calculation sheet'!L17","v":0},{"$f":"'Calculation sheet'!M17","v":0},null,null,null,null,null,null,null,null,"Thu",null,"Dec"]
[{"$f":"'Calculation sheet'!L38","v":0},{"$f":"'Calculation sheet'!M38","v":0},null,"2026-06-12",null,null,null,0,{"$f":"'Calculation sheet'!L18","v":0},{"$f":"'Calculation sheet'!M18","v":0},null,null,null,null,null,null,null,null,"Fri"]
[null,null,null,"2026-06-13",null,null,null,0,{"$f":"'Calculation sheet'!L19","v":0},{"$f":"'Calculation sheet'!M19","v":0},null,null,null,null,null,null,null,null,"Sat"]
[null,null,null,"2026-06-14",null,null,null,0,{"$f":"'Calculation sheet'!L20","v":0},{"$f":"'Calculation sheet'!M20","v":0},null,null,null,null,null,null,null,null,"Sun"]
["mhIny dy AMq ivc bkwieAw",null,null,"2026-06-15",null,null,null,0,{"$f":"'Calculation sheet'!L21","v":0},{"$f":"'Calculation sheet'!M21","v":0},null,null,null,null,null,null,null,null,"Mon"]
["kxk","cwvl",null,"2026-06-16",null,null,null,0,{"$f":"'Calculation sheet'!L22","v":0},{"$f":"'Calculation sheet'!M22","v":0},null,null,null,null,null,null,null,null,"Tue"]
[{"$f":"A23-A26","v":100},{"$f":"B23-B26","v":200},null,"2026-06-17",null,null,null,0,{"$f":"'Calculation sheet'!L23","v":0},{"$f":"'Calculation sheet'!M23","v":0},null,null,null,null,null,null,null,null,"Wed"]
["ku`l kuikg kwst",{"$f":"H46*Q1","v":0},null,"2026-06-18",null,null,null,0,{"$f":"'Calculation sheet'!L24","v":0},{"$f":"'Calculation sheet'!M24","v":0},null,null,null,null,null,null,null,null,"Thu"]
["pRwpq Awmdn PFMS  qyies mhIny",null,null,"2026-06-19",null,null,null,0,{"$f":"'Calculation sheet'!L25","v":0},{"$f":"'Calculation sheet'!M25","v":0},null,null,null,null,null,null,null,null,"Fri"]
[null,null,null,"2026-06-20",null,null,null,0,{"$f":"'Calculation sheet'!L26","v":0},{"$f":"'Calculation sheet'!M26","v":0},null,null,null,null,null,null,null,null,"Sat"]
["Krcw PFMS qy ( PPA )",null,null,"2026-06-21",null,null,null,0,{"$f":"'Calculation sheet'!L27","v":0},{"$f":"'Calculation sheet'!M27","v":0},null,null,null,null,null,null,null,null,"Sun"]
[null,null,null,"2026-06-22",null,null,null,0,{"$f":"'Calculation sheet'!L28","v":0},{"$f":"'Calculation sheet'!M28","v":0},null,null,null,null,null,null,null,null,"Mon"]
["muFlw bkwieAw kuikMg kwst",null,null,"2026-06-23",null,null,null,0,{"$f":"'Calculation sheet'!L29","v":0},{"$f":"'Calculation sheet'!M29","v":0},null,null,null,null,null,null,null,null,"Tue"]
[null,null,null,"2026-06-24",null,null,null,0,{"$f":"'Calculation sheet'!L30","v":0},{"$f":"'Calculation sheet'!M30","v":0},null,null,null,null,null,null,null,null,"Wed"]
["mhIny dy AMq ivc bkwieAw",{"$f":"B37+B33-B35","v":0},null,"2026-06-25",null,null,null,0,{"$f":"'Calculation sheet'!L31","v":0},{"$f":"'Calculation sheet'!M31","v":0},null,null,null,null,null,null,null,null,"Thu"]
[null,null,null,"2026-06-26",null,null,null,0,{"$f":"'Calculation sheet'!L32","v":0},{"$f":"'Calculation sheet'!M32","v":0},null,null,null,null,null,null,null,null,"Fri"]
[null,null,null,"2026-06-27",null,null,null,0,{"$f":"'Calculation sheet'!L33","v":0},{"$f":"'Calculation sheet'!M33","v":0},null,null,null,null,null,null,null,null,"Sat"]
[null,null,null,"2026-06-28",null,null,null,0,{"$f":"'Calculation sheet'!L34","v":0},{"$f":"'Calculation sheet'!M34","v":0},null,null,null,null,null,null,null,null,"Sun"]
[null,null,null,"2026-06-29",null,null,null,0,{"$f":"'Calculation sheet'!L35","v":0},{"$f":"'Calculation sheet'!M35","v":0},null,null,null,null,null,null,null,null,"Mon"]
[null,null,null,"2026-06-30",null,null,null,0,{"$f":"'Calculation sheet'!L36","v":0},{"$f":"'Calculation sheet'!M36","v":0},null,null,null,null,null,null,null,null,"Tue"]
[null,null,null,"",null,null,null,0,{"$f":"'Calculation sheet'!L37","v":0},{"$f":"'Calculation sheet'!M37","v":0},null,null,null,null,null,null,null,null,""]
[null,null,null,"ku`l",{"$f":"SUM(E15:E45)","v":0},{"$f":"SUM(F15:F45)","v":0},0,0,0,0]
[]
[]
[]
[]
[]
["PrUt dI igxqI ies mhIny",{"$f":"'Bill Print'!E35","v":0}]
["PrUt dy bxdy pYsy",{"$f":"'Bill Print'!H35","v":0}]
[]
[]
[]
[]
[]
[]
[]
[]
[]
[]
[]
[]
[null,null,null,null,"i"]

{"sheet":"Bill Print","index":2,"n_rows":45,"n_cols":19,"rows_kept":45,"cut":false,"hidden":false,"merged":[[24,18,25,18],[27,13,27,18],[31,13,31,18],[36,12,36,19],[0,1,0,8],[1,1,35,1],[1,8,35,8],[36,1,36,8],[0,12,0,19],[1,12,35,12],[1,13,1,18],[1,19,35,19],[2,13,2,16],[3,13,3,18],[18,14,18,16],[19,13,19,18],[24,16,25,16],[24,17,25,17],[31,2,31,7],[3,2,3,7],[27,2,27,7],[26,3,26,5],[26,14,26,16],[1,2,1,7],[19,2,19,7],[24,5,25,5],[24,6,25,6],[24,7,25,7],[11,6,14,6],[11,7,14,7],[18,3,18,5],[2,4,2,5],[2,2,2,3]]}
[]
[null,null,"Monthly Bill Item Wise Auto",null,null,null,null,null,null,null,null,null,null,"Monthly Bill Custom Rate Wise"]
[null,null,null,null,"For the Month of: ",null,null,{"$f":"'Entry Sheet'!J3&+\"_\"&'Entry Sheet'!J5","v":"Jun_2026"},null,null,null,null,null,"For the Month of: ",null,null,null,{"$f":"H3","v":"Jun_2026"},{"$f":"'Entry Sheet'!U3&+\"_\"&'Entry Sheet'!U5","v":"_"}]
[null,null,"kirAwnw ib`l",null,null,null,null,null,null,null,null,null,null,"kirAwnw ib`l"]
[null,null,"Sr. no.","Item","Quantity","Rate","Total","Total Amount",null,null,null,null,null,"Sr. no.","Item","Quantity","Rate","Total","Total Amount"]
[null,null,1,"dwl (cnw Aqy muMgI)",{"$f":"'Calculation sheet'!$Z$38","v":0},110,{"$f":"E6*F6","v":0},{"$f":"G6","v":0},null,null,null,null,null,1,"dwl (cnw Aqy muMgI)",{"$f":"'Calculation sheet'!$Z$38","v":0},110,{"$f":"P6*Q6","v":0},{"$f":"R6","v":0}]
[null,null,2,"kwly Coly",{"$f":"'Calculation sheet'!$AA$38","v":0},90,{"$f":"E7*F7","v":0},{"$f":"G7","v":0},null,null,null,null,null,2,"kwly Coly",{"$f":"'Calculation sheet'!$AA$38","v":0},90,{"$f":"P7*Q7","v":0},{"$f":"R7","v":0}]
[null,null,3,"bysx",{"$f":"'Calculation sheet'!$AD$38","v":0},105,0,0,null,null,null,null,null,3,"bysx",{"$f":"'Calculation sheet'!$AD$38","v":0},105,0,0]
[null,null,4,"irPwief qyl",{"$f":"'Calculation sheet'!$AG$38","v":0},140,0,0,null,null,null,null,null,4,"irPwief qyl",{"$f":"'Calculation sheet'!$AG$38","v":0},130,0,0]
[null,null,5,"cInI",{"$f":"'Calculation sheet'!$AH$38","v":0},45,0,0,null,null,null,null,null,5,"cInI",{"$f":"'Calculation sheet'!$AH$38","v":0},44,0,0]
[null,null,6,"rwjmwh",{"$f":"'Calculation sheet'!$AK$38","v":0},95,0,0,null,null,null,null,null,6,"rwjmwh",{"$f":"'Calculation sheet'!$AK$38","v":0},95,0,0]
[null,null,7,"nmk",null,null,{"$f":"ROUND(SUM(G6:G11)/7,0)","v":0},{"$f":"G12","v":0},null,null,null,null,null,7,"nmk",null,100,{"$f":"Q12","v":100},{"$f":"R12","v":100}]
[null,null,8,"hldI",null,null,null,null,null,null,null,null,null,8,"hldI",null,120,{"$f":"Q13","v":120},{"$f":"R13","v":120}]
[null,null,9,"imrc",null,null,null,null,null,null,null,null,null,9,"imrc",null,60,60,60]
[null,null,10,"mswlw",null,null,null,null,null,null,null,null,null,10,"mswlw",null,60,60,{"$f":"R15","v":60}]
[null,null,11,"dwKW",{"$f":"IF(H30<1,0,IF(H30<500,1,IF(H30<8000,2,IF(H30<1200,3,IF(H30<2000,4,IF(H30>3000,5,0))))))","v":0},80,0,{"$f":"G16","v":0},null,null,null,null,null,11,"dwKW",null,50,{"$f":"Q16","v":50},{"$f":"R16","v":50}]
[null,null,12,"Kopw",{"$f":"IF(H30<1,0,IF(H30<500,1,IF(H30<800,2,IF(H30<1200,3,IF(H30<2000,4,IF(H30>2800,5,0))))))","v":0},50,0,{"$f":"G17","v":0},null,null,null,null,null,12,"Kopw",null,50,{"$f":"Q17","v":50},{"$f":"R17","v":50}]
[null,null,13,"jIrw (grwmW iv`c)",{"$f":"IF(H27<1,100,IF(H27<500,150,IF(H27<1000,380,IF(H27<2000,550,0))))","v":100},{"$f":"E18","v":100},{"$f":"F18","v":100},{"$f":"E18","v":100},null,null,null,null,null,13,"jIrw (grwmW iv`c)",null,50,50,{"$f":"R18+R45","v":50}]
[null,null,null,"Total",null,null,{"$f":"SUM(G6:G18)","v":100},{"$f":"SUM(H6:H18)","v":100},null,null,null,null,null,null,"Total",null,null,{"$f":"SUM(R6:R18)","v":490},{"$f":"SUM(S6:S18)","v":490}]
[null,null,"sbjI mMfI ib`l",null,null,null,null,null,null,null,null,null,null,"sbjI mMfI ib`l"]
[null,null,"Sr. no.","Item","Quantity","Rate","Total","Amount",null,null,null,null,null,"Sr. no.","Item","Quantity","Rate","Total","Amount"]
[null,null,1,"ipAwj",{"$f":"'Calculation sheet'!$AB$38","v":0},20,{"$f":"E22*F22","v":0},{"$f":"G22","v":0},null,null,null,null,null,1,"ipAwj",{"$f":"E22","v":0},20,{"$f":"P22*Q22","v":0},{"$f":"R22","v":0}]
[null,null,2,"AwlU",{"$f":"'Calculation sheet'!$AJ$38","v":0},20,{"$f":"E23*F23","v":0},{"$f":"G23","v":0},null,null,null,null,null,2,"AwlU",{"$f":"'Calculation sheet'!$AJ$38","v":0},20,{"$f":"P23*Q23","v":0},{"$f":"R23","v":0}]
[null,null,3,"Adrk,tmwtr,hrI imrc",null,null,{"$f":"ROUND(G22/5,-1)","v":0},0,null,null,null,null,null,3,"Adrk,tmwtr,hrI imrc",null,50,{"$f":"Q24","v":50},50]
[null,null,4,"sbjI",{"$f":"'Calculation sheet'!$AE$38","v":0},25,{"$f":"ROUND((E25+E26)*F25,0)","v":0},{"$f":"ROUND(G25,0)","v":0},null,null,null,null,null,4,"sbjI",{"$f":"E25","v":0},30,{"$f":"(P25+P26)*Q25","v":0},{"$f":"R25","v":0}]
[null,null,5,"sbjI dwl leI",{"$f":"'Calculation sheet'!$AF$38","v":0},null,null,null,null,null,null,null,null,5,"sbjI dwl leI",{"$f":"E26","v":0}]
[null,null,null,"Total",null,null,null,{"$f":"SUM(H22:H26)","v":0},null,null,null,null,null,null,"Total",null,null,{"$f":"SUM(R22:R26)","v":50}]
[null,null,"fyArI ib`l",null,null,null,null,null,null,null,null,null,null,"fyArI ib`l"]
[null,null,"Sr. no.","Item","Quantity","Rate","Total","Amount",null,null,null,null,null,"Sr. no.","Item","Quantity","Rate","Total","Amount"]
[null,null,1,"du`D",{"$f":"'Calculation sheet'!$AI$38","v":0},70,{"$f":"E30*F30","v":0},{"$f":"G30","v":0},null,null,null,null,null,1,"du`D",{"$f":"'Calculation sheet'!$AI$38","v":0},70,{"$f":"P30*Q30","v":0},{"$f":"R30","v":0}]
[null,null,2,"dhIN",{"$f":"'Calculation sheet'!$AC$38","v":0},80,0,{"$f":"G31","v":0},null,null,null,null,null,2,"dhIN",{"$f":"'Calculation sheet'!$AC$38","v":0},80,0,{"$f":"R31","v":0}]
[null,null," ib`l bwkI Aietm",null,null,null,null,null,null,null,null,null,null," ib`l bwkI Aietm"]
[null,null,1,"Awtw ipsweI",{"$f":"'Calculation sheet'!$L$38","v":0},4,0,{"$f":"G33","v":0},null,null,null,null,null,1,"Awtw ipsweI",{"$f":"E33","v":0},4,{"$f":"P33*Q33","v":0},{"$f":"R33","v":0}]
[null,null,2,"bwlx",null,null,{"$f":"ROUND(F45-SUM(G19:G33),0)","v":-100},{"$f":"ROUND(G34,1)","v":-100},null,null,null,null,null,2,"bwlx",null,200,{"$f":"Q34","v":200},{"$f":"ROUND(R34,1)","v":200}]
[null,null,3,"PrUt (pIsW iv`c)",{"$f":"'Calculation sheet'!AL38","v":0},5,null,{"$f":"E35*F35","v":0},null,null,null,null,null,3,"PrUt (pIsW iv`c)",{"$f":"'Calculation sheet'!AL38","v":0},5,{"$f":"P35*Q35","v":0}]
[null,null,null,"ku`l PrUt smyq",{"$f":"H36+H35","v":0},"ibnw PrUt",{"$f":"SUM(G19:G35)","v":0},{"$f":"H34+H33+H31+H30+H27+H19","v":0},null,null,null,null,null,null,"ku`l PrUt smyq",{"$f":"R36+R35","v":740},"ibnw PrUt",{"$f":"R34+R33+R31+R30+R27+R19","v":740},{"$f":"SUM(S19:S35)","v":740}]
[]
[]
[]
[]
[null,null,null,null,null,{"$f":"IF(H36=F45,\"Matched\",\"error\")","v":"Matched"},null,null,null,null,null,null,null,null,"Required","Diff"]
[null,null,null,null,null,null,null,null,null,null,null,null,null,null,{"$f":"'Calculation sheet'!$R$38","v":0},{"$f":"O42-R36","v":-740}]
[]
[null,null,null,null,null,"Required","Diff"]
[null,null,null,null,null,{"$f":"'Calculation sheet'!$R$38","v":0},{"$f":"F45-G36","v":0}]

{"sheet":"Calculation sheet","index":3,"n_rows":40,"n_cols":43,"rows_kept":40,"cut":false,"hidden":false,"merged":[[1,0,1,19],[2,0,4,0],[2,1,4,1],[2,2,4,2],[2,3,4,3],[2,4,4,4],[2,5,2,8],[2,9,3,10],[2,19,4,19],[38,7,38,10],[4,40,4,42],[2,25,2,38],[5,0,5,1],[2,15,3,16],[2,17,4,17],[2,18,4,18],[3,5,3,6],[3,7,3,8],[2,11,3,12],[2,13,3,14]]}
[]
[{"$f":"\"rojwnw Anwj dI Kpq Aqy pkwaux dy Krcy dI irport\"&\n\"   skUl dw nwm: = \"& 'Entry Sheet'!D10","v":"rojwnw Anwj dI Kpq Aqy pkwaux dy Krcy dI irport   skUl dw nwm: = srkwrI hweI skUl     blwk   KMnw   ijlHw    luiDAwxw "}]
["lVI nM","imqI","dwKl hoey ividAwrQIAw dI igxqI","hwjLr ividAwrQIAw dI igxqI","Bojn krn vwly ividAwrQIAw dI igxqI","skUl ivwc Anwj dw BMzwr",null,null,null,"ku`l BMfwr",null,"A`j dy idn dI Anwj dI vrqoN",null,"ies mhIny dI Anwj dI vrqoN pROgRYisv",null,"Anwj dw bkwieAw BMzwr",null,"A`j dy idn dw Bojn bxwaux dw Krcw","ies mhIny dw pOgRYisv Bojn pkwaux dw Krcw","Bojn dI iksm",null,null,null,null,null,"Bojn bnwaux leI dUsrI smgrI (iklo iv`c)"]
[null,null,null,null,null,"muuFlw bkwieAw",null,"A`j dy idn dI pRwpqI"]
[null,null,null,null,null,"kxk \niklo ivwc","cwvl iklo iv`c","kxk \nik`lo iv`c","cwvl iklo iv`c","kxk \nik`lo iv`c","cwvl iklo iv`c","kxk \nik`lo iv`c","cwvl iklo iv`c","kxk \nik`lo ivwc","cwvl iklo iv`c","kxk \nik`lo ivwc","cwvl iklo iv`c",null,null,null,null,{"$f":"'Entry Sheet'!J7","v":"Tue"},null,null,null,"Dal","Black Channa","Onion ","Curd","Besan","Vegetables","Vegitable for Dal","Oil & Fat","Sugar","Milk","Pattato","Rajmah","Fruits",null,null,"pRqI b`cw rwSn dI imkdwr"]
["Previous\n",null,null,null,0,{"$f":"'Entry Sheet'!A17","v":100},{"$f":"'Entry Sheet'!B17","v":200},{"$f":"'Entry Sheet'!A20","v":0},{"$f":"'Entry Sheet'!B20","v":0},null,null,null,null,null,null,null,null,null,null,null,null,null,null,null,null,"In KG","In KG","In KG","In KG","In KG","In KG","In KG","In KG","In KG","In Litt","In KG","In kg","pcs",null,null,"Item","Quantity /Std in gm","In KG"]
[1,{"$f":"'Entry Sheet'!D15","v":"2026-06-01"},null,{"$f":"'Entry Sheet'!H15","v":0},{"$f":"D7","v":0},{"$f":"F6","v":100},{"$f":"G6","v":200},0,0,{"$f":"F7+H6","v":100},{"$f":"G7+I6","v":200},{"$f":"IF(OR(X7=\"MonOK\",X7=\"WedOK\",X7=\"FriOK\"),E7*0.15,IF(OR(X7=\"MonOK Aqy Kir\",X7=\"WedOK Aqy Kir\",X7=\"FriOK Aqy Kir\"),E7*0.135,0))","v":0},{"$f":"IF(OR(X7=\"TueOK\",X7=\"ThuOK\",X7=\"SatOK\"),E7*0.15,IF(OR(X7=\"MonOK Aqy Kir\",X7=\"WedOK Aqy Kir\",X7=\"FriOK Aqy Kir\"),E7*0.015,IF(OR(X7=\"TueOK Aqy Kir\",X7=\"ThuOK Aqy Kir\",X7=\"SatOK Aqy Kir\"),E7*0.15,0)))","v":0},{"$f":"N6+L7","v":0},0,{"$f":"J7-L7","v":100},{"$f":"K7-M7","v":200},{"$f":"E7*'Entry Sheet'!$Q$1","v":0},{"$f":"S6+R7","v":0},{"$f":"CHOOSE(Y7,\"dwl (mOsmI sbjI imlw ky) Aqy rotI\",\"rwjmwh Aqy  cwvl\",\"kwly Colyy(AwlU imlw ky)Aqy rotI \",\"kVI (pkOoiVAW smyq) Aqy cwvl\",\"moOsmI sbjI Aqy rotI\",\"dwl (mOsmI sbjI imlw ky) Aqy cwvl \",\"dwl (mOsmI sbjI imlw ky) Aqy rotI Aqy KIr\",\"rwjmwh Aqy  cwvl Aqy KIr\",\"kwly Colyy(AwlU imlw ky)Aqy rotI Aqy KIr\",\"kVI (pkOoiVAW smyq) Aqy cwvl Aqy KIr\",\"moOsmI sbjI Aqy rotI Aqy KIr\",\"dwl (mOsmI sbjI imlw ky) Aqy cwvl Aqy KIr\",\"Cu`tI\",\"Cu`tI\")","v":"Cu`tI"},{"$f":"IF(AND(W7=\"Wed\",E7>0),\"kwly Colyy(AwlU imlw ky)Aqy rotI \",IF(AND(W7=\"Thu\",E7>0),\"kVI (pkOoiVAW smyq) Aqy cwvl\",IF(AND(W7=\"Mon\",E7>0),\"dwl (mOsmI sbjI imlw ky) Aqy rotI\",IF(AND(W7=\"Tue\",E7>0),\"rwjmwh Aqy  cwvl\",IF(AND(W7=\"Fri\",E7>0),\"moOsmI sbjI Aqy rotI\",IF(AND(W7=\"Sat\",E7>0),\"dwl (mOsmI sbjI imlw ky) Aqy cwvl \",\"Cu`tI\"))))))","v":"Cu`tI"},{"$f":"IF(AND(E7>0,$V$5=W7),\" Aqy KIr\",\"\")","v":""},{"$f":"'Entry Sheet'!S15","v":"Mon"},{"$f":"IF(E7>0,W7&\"OK\"&V7,\"\")","v":""},{"$f":"IF(X7=\"MonOk\",1,IF(X7=\"TueOk\",2,IF(X7=\"WedOk\",3,IF(X7=\"ThuOk\",4,IF(X7=\"FriOk\",5,IF(X7=\"SatOk\",6,IF(X7=\"MonOk Aqy KIr\",7,IF(X7=\"TueOk Aqy KIr\",8,IF(X7=\"WedOk Aqy KIr\",9,IF(X7=\"ThuOk Aqy KIr\",10,IF(X7=\"FriOk Aqy KIr\",11,IF(X7=\"SatOk Aqy KIr\",12,IF(W7=\"Sun\",13,14)))))))))))))","v":14},{"$f":"IF(OR(Y7=1,Y7=6,Y7=7,Y7=12),E7*$AQ$7,0)","v":0},{"$f":"IF(OR(Y7=3,Y7=9),E7*$AQ$8,0)","v":0},{"$f":"IF(OR(Y7=1,Y7=6,Y7=7,Y7=12,Y7=2,Y7=8),E7*$AQ$21,IF(OR(Y7=3,Y7=9),E7*$AQ$22,IF(OR(Y7=4,Y7=10),E7*$AQ$23,IF(OR(Y7=5,Y7=11),E7*$AQ$24,0))))","v":0},{"$f":"IF(OR(Y7=4,Y7=10),E7*$AQ$19,0)","v":0},{"$f":"IF(OR(Y7=4,Y7=10),E7*$AQ$10,0)","v":0},{"$f":"IF(OR(Y7=5,Y7=11),E7*$AQ$28,0)","v":0},{"$f":"IF(OR(Y7=1,Y7=6,Y7=7,Y7=12),E7*$AQ$27,0)","v":0},{"$f":"IF(OR(Y7=1,Y7=6,Y7=7,Y7=12,Y7=2,Y7=8),E7*$AQ$11,IF(OR(Y7=3,Y7=9),E7*$AQ$12,IF(OR(Y7=4,Y7=10),E7*$AQ$13,IF(OR(Y7=5,Y7=11),E7*$AQ$14,0))))","v":0},{"$f":"IF(OR(Y7=7,Y7=8,Y7=9,Y7=10,Y7=11,Y7=12),E7*$AQ$18,0)","v":0},{"$f":"IF(OR(Y7=7,Y7=8,Y7=9,Y7=10,Y7=11,Y7=12),E7*$AQ$20,0)","v":0},{"$f":"IF(OR(Y7=4,Y7=10),E7*$AQ$25,IF(OR(Y7=3,Y7=9),E7*$AQ$26,0))","v":0},{"$f":"IF(OR(Y7=2,Y7=8),E7*$AQ$9,0)","v":0},{"$f":"IF('Entry Sheet'!$J$8='Calculation sheet'!W7,E7,0)","v":0},null,null,"dwl",30,{"$f":"AP7/1000","v":0.03}]
[2,{"$f":"'Entry Sheet'!D16","v":"2026-06-02"},null,{"$f":"'Entry Sheet'!H16","v":0},{"$f":"D8","v":0},{"$f":"P7","v":100},{"$f":"Q7","v":200},0,0,{"$f":"F8+H8","v":100},{"$f":"G8+I8","v":200},{"$f":"IF(OR(X8=\"MonOK\",X8=\"WedOK\",X8=\"FriOK\"),E8*0.15,IF(OR(X8=\"MonOK Aqy Kir\",X8=\"WedOK Aqy Kir\",X8=\"FriOK Aqy Kir\"),E8*0.135,0))","v":0},{"$f":"IF(OR(X8=\"TueOK\",X8=\"ThuOK\",X8=\"SatOK\"),E8*0.15,IF(OR(X8=\"MonOK Aqy Kir\",X8=\"WedOK Aqy Kir\",X8=\"FriOK Aqy Kir\"),E8*0.015,IF(OR(X8=\"TueOK Aqy Kir\",X8=\"ThuOK Aqy Kir\",X8=\"SatOK Aqy Kir\"),E8*0.15,0)))","v":0},0,0,{"$f":"J8-L8","v":100},{"$f":"K8-M8","v":200},{"$f":"E8*'Entry Sheet'!$Q$1","v":0},{"$f":"S7+R8","v":0},{"$f":"CHOOSE(Y8,\"dwl (mOsmI sbjI imlw ky) Aqy rotI\",\"rwjmwh Aqy  cwvl\",\"kwly Colyy(AwlU imlw ky)Aqy rotI \",\"kVI (pkOoiVAW smyq) Aqy cwvl\",\"moOsmI sbjI Aqy rotI\",\"dwl (mOsmI sbjI imlw ky) Aqy cwvl \",\"dwl (mOsmI sbjI imlw ky) Aqy rotI Aqy KIr\",\"rwjmwh Aqy  cwvl Aqy KIr\",\"kwly Colyy(AwlU imlw ky)Aqy rotI Aqy KIr\",\"kVI (pkOoiVAW smyq) Aqy cwvl Aqy KIr\",\"moOsmI sbjI Aqy rotI Aqy KIr\",\"dwl (mOsmI sbjI imlw ky) Aqy cwvl Aqy KIr\",\"Cu`tI\",\"Cu`tI\")","v":"Cu`tI"},{"$f":"IF(AND(W8=\"Wed\",E8>0),\"kwly Colyy(AwlU imlw ky)Aqy rotI \",IF(AND(W8=\"Thu\",E8>0),\"kVI (pkOoiVAW smyq) Aqy cwvl\",IF(AND(W8=\"Mon\",E8>0),\"dwl (mOsmI sbjI imlw ky) Aqy rotI\",IF(AND(W8=\"Tue\",E8>0),\"rwjmwh Aqy  cwvl\",IF(AND(W8=\"Fri\",E8>0),\"moOsmI sbjI Aqy rotI\",IF(AND(W8=\"Sat\",E8>0),\"dwl (mOsmI sbjI imlw ky) Aqy cwvl \",\"Cu`tI\"))))))","v":"Cu`tI"},{"$f":"IF(AND(E8>0,$V$5=W8),\" Aqy KIr\",\"\")","v":""},{"$f":"'Entry Sheet'!S16","v":"Tue"},{"$f":"IF(E8>0,W8&\"OK\"&V8,\"\")","v":""},14,{"$f":"IF(OR(Y8=1,Y8=6,Y8=7,Y8=12),E8*$AQ$7,0)","v":0},{"$f":"IF(OR(Y8=3,Y8=9),E8*$AQ$8,0)","v":0},{"$f":"IF(OR(Y8=1,Y8=6,Y8=7,Y8=12,Y8=2,Y8=8),E8*$AQ$21,IF(OR(Y8=3,Y8=9),E8*$AQ$22,IF(OR(Y8=4,Y8=10),E8*$AQ$23,IF(OR(Y8=5,Y8=11),E8*$AQ$24,0))))","v":0},{"$f":"IF(OR(Y8=4,Y8=10),E8*$AQ$19,0)","v":0},{"$f":"IF(OR(Y8=4,Y8=10),E8*$AQ$10,0)","v":0},{"$f":"IF(OR(Y8=5,Y8=11),E8*$AQ$28,0)","v":0},{"$f":"IF(OR(Y8=1,Y8=6,Y8=7,Y8=12),E8*$AQ$27,0)","v":0},{"$f":"IF(OR(Y8=1,Y8=6,Y8=7,Y8=12,Y8=2,Y8=8),E8*$AQ$11,IF(OR(Y8=3,Y8=9),E8*$AQ$12,IF(OR(Y8=4,Y8=10),E8*$AQ$13,IF(OR(Y8=5,Y8=11),E8*$AQ$14,0))))","v":0},{"$f":"IF(OR(Y8=7,Y8=8,Y8=9,Y8=10,Y8=11,Y8=12),E8*$AQ$18,0)","v":0},{"$f":"IF(OR(Y8=7,Y8=8,Y8=9,Y8=10,Y8=11,Y8=12),E8*$AQ$20,0)","v":0},{"$f":"IF(OR(Y8=4,Y8=10),E8*$AQ$25,IF(OR(Y8=3,Y8=9),E8*$AQ$26,0))","v":0},{"$f":"IF(OR(Y8=2,Y8=8),E8*$AQ$9,0)","v":0},{"$f":"IF('Entry Sheet'!$J$8='Calculation sheet'!W8,E8,0)","v":0},null,null,"Coly",35,{"$f":"AP8/1000","v":3.5000000000000003E-2}]
[3,{"$f":"'Entry Sheet'!D17","v":"2026-06-03"},null,{"$f":"'Entry Sheet'!H17","v":0},0,{"$f":"P8","v":100},{"$f":"Q8","v":200},0,0,{"$f":"F9+H9","v":100},{"$f":"G9+I9","v":200},0,0,0,0,{"$f":"J9-L9","v":100},{"$f":"K9-M9","v":200},{"$f":"E9*'Entry Sheet'!$Q$1","v":0},{"$f":"S8+R9","v":0},"Cu`tI","Cu`tI","",{"$f":"'Entry Sheet'!S17","v":"Wed"},"",14,0,0,0,0,0,0,0,0,0,0,0,0,{"$f":"IF('Entry Sheet'!$J$8='Calculation sheet'!W9,E9,0)","v":0},null,null,"rwj mwh",30,0.03]
[4,{"$f":"'Entry Sheet'!D18","v":"2026-06-04"},null,{"$f":"'Entry Sheet'!H18","v":0},0,100,200,0,0,100,200,0,0,{"$f":"N9+L10","v":0},{"$f":"O9+M10","v":0},100,200,{"$f":"E10*'Entry Sheet'!$Q$1","v":0},0,"Cu`tI","Cu`tI","",{"$f":"'Entry Sheet'!S18","v":"Thu"},"",14,0,0,0,0,0,0,0,0,0,0,0,0,{"$f":"IF('Entry Sheet'!$J$8='Calculation sheet'!W10,E10,0)","v":0},null,null,"bysx",30,0.03]
[5,{"$f":"'Entry Sheet'!D19","v":"2026-06-05"},null,{"$f":"'Entry Sheet'!H19","v":0},0,100,200,0,0,100,200,0,0,{"$f":"N10+L11","v":0},0,{"$f":"J11-L11","v":100},200,{"$f":"E11*'Entry Sheet'!$Q$1","v":0},0,"Cu`tI","Cu`tI",{"$f":"IF(AND(E11>0,$V$5=W11),\" Aqy KIr\",\"\")","v":""},{"$f":"'Entry Sheet'!S19","v":"Fri"},"",14,0,0,0,0,0,0,0,0,0,0,0,0,{"$f":"IF('Entry Sheet'!$J$8='Calculation sheet'!W11,E11,0)","v":0},null,null,"irPwief dwl/rwjmwh",10,0.01]
[6,{"$f":"'Entry Sheet'!D20","v":"2026-06-06"},null,{"$f":"'Entry Sheet'!H20","v":0},0,100,200,0,0,100,200,0,0,0,0,100,200,{"$f":"E12*'Entry Sheet'!$Q$1","v":0},0,"Cu`tI","Cu`tI","",{"$f":"'Entry Sheet'!S20","v":"Sat"},"",14,0,0,0,0,0,0,0,0,0,0,0,0,{"$f":"IF('Entry Sheet'!$J$8='Calculation sheet'!W12,E12,0)","v":0},null,null,"irPwief CoilAw nwl",15.5,1.55E-2]
[7,{"$f":"'Entry Sheet'!D21","v":"2026-06-07"},null,{"$f":"'Entry Sheet'!H21","v":0},0,100,200,0,0,100,200,0,0,0,0,100,200,{"$f":"E13*'Entry Sheet'!$Q$1","v":0},0,"Cu`tI","Cu`tI","",{"$f":"'Entry Sheet'!S21","v":"Sun"},"",13,0,0,0,0,0,0,0,0,0,0,0,0,{"$f":"IF('Entry Sheet'!$J$8='Calculation sheet'!W13,E13,0)","v":0},null,null,"irPwief kVI nwl",7.5,7.4999999999999997E-3]
[8,{"$f":"'Entry Sheet'!D22","v":"2026-06-08"},null,{"$f":"'Entry Sheet'!H22","v":0},0,100,200,0,0,100,200,0,0,0,0,100,200,{"$f":"E14*'Entry Sheet'!$Q$1","v":0},0,"Cu`tI","Cu`tI","",{"$f":"'Entry Sheet'!S22","v":"Mon"},"",14,0,0,0,0,0,0,0,0,0,0,0,0,{"$f":"IF('Entry Sheet'!$J$8='Calculation sheet'!W14,E14,0)","v":0},null,null,"irPwief mosmI sbjI",9,8.9999999999999993E-3]
[9,{"$f":"'Entry Sheet'!D23","v":"2026-06-09"},null,{"$f":"'Entry Sheet'!H23","v":0},0,100,200,0,0,100,200,0,0,0,0,100,200,{"$f":"E15*'Entry Sheet'!$Q$1","v":0},0,"Cu`tI","Cu`tI","",{"$f":"'Entry Sheet'!S23","v":"Tue"},"",14,0,0,0,0,0,0,0,0,0,0,0,0,{"$f":"IF('Entry Sheet'!$J$8='Calculation sheet'!W15,E15,0)","v":0},null,null,"nmk",15,1.4999999999999999E-2]
[10,{"$f":"'Entry Sheet'!D24","v":"2026-06-10"},null,{"$f":"'Entry Sheet'!H24","v":0},0,100,200,0,0,100,200,0,0,0,0,100,200,{"$f":"E16*'Entry Sheet'!$Q$1","v":0},0,"Cu`tI","Cu`tI","",{"$f":"'Entry Sheet'!S24","v":"Wed"},"",14,0,0,0,0,0,0,0,0,0,0,0,0,{"$f":"IF('Entry Sheet'!$J$8='Calculation sheet'!W16,E16,0)","v":0},null,null,"imrc/mswlw",null,0]
[11,{"$f":"'Entry Sheet'!D25","v":"2026-06-11"},null,{"$f":"'Entry Sheet'!H25","v":0},0,100,200,0,0,100,200,0,0,0,0,100,200,{"$f":"E17*'Entry Sheet'!$Q$1","v":0},0,"Cu`tI","Cu`tI","",{"$f":"'Entry Sheet'!S25","v":"Thu"},"",14,0,0,0,0,0,0,0,0,0,0,0,0,{"$f":"IF('Entry Sheet'!$J$8='Calculation sheet'!W17,E17,0)","v":0},null,null,"hldI",null,0]
[12,{"$f":"'Entry Sheet'!D26","v":"2026-06-12"},null,{"$f":"'Entry Sheet'!H26","v":0},0,100,200,0,0,100,200,0,0,0,0,100,200,{"$f":"E18*'Entry Sheet'!$Q$1","v":0},0,"Cu`tI","Cu`tI","",{"$f":"'Entry Sheet'!S26","v":"Fri"},"",14,0,0,0,0,0,0,0,0,0,0,0,0,{"$f":"IF('Entry Sheet'!$J$8='Calculation sheet'!W18,E18,0)","v":0},null,null,"cInI",15,1.4999999999999999E-2]
[13,{"$f":"'Entry Sheet'!D27","v":"2026-06-13"},null,{"$f":"'Entry Sheet'!H27","v":0},0,100,200,0,0,100,200,0,0,0,0,100,200,{"$f":"E19*'Entry Sheet'!$Q$1","v":0},0,"Cu`tI","Cu`tI","",{"$f":"'Entry Sheet'!S27","v":"Sat"},"",14,0,0,0,0,0,0,0,0,0,0,0,0,{"$f":"IF('Entry Sheet'!$J$8='Calculation sheet'!W19,E19,0)","v":0},null,null,"dhI",30,0.03]
[14,{"$f":"'Entry Sheet'!D28","v":"2026-06-14"},null,{"$f":"'Entry Sheet'!H28","v":0},0,100,200,0,0,100,200,0,0,0,0,100,200,{"$f":"E20*'Entry Sheet'!$Q$1","v":0},0,"Cu`tI","Cu`tI","",{"$f":"'Entry Sheet'!S28","v":"Sun"},"",13,0,0,0,0,0,0,0,0,0,0,0,0,{"$f":"IF('Entry Sheet'!$J$8='Calculation sheet'!W20,E20,0)","v":0},null,null,"du`D",45,4.4999999999999998E-2]
[15,{"$f":"'Entry Sheet'!D29","v":"2026-06-15"},null,{"$f":"'Entry Sheet'!H29","v":0},0,100,200,0,0,100,200,0,0,0,0,100,200,{"$f":"E21*'Entry Sheet'!$Q$1","v":0},0,"Cu`tI","Cu`tI","",{"$f":"'Entry Sheet'!S29","v":"Mon"},"",14,0,0,0,0,0,0,0,0,0,0,0,0,{"$f":"IF('Entry Sheet'!$J$8='Calculation sheet'!W21,E21,0)","v":0},null,null,"ipAwj dwl/rwjmwh",15,1.4999999999999999E-2]
[16,{"$f":"'Entry Sheet'!D30","v":"2026-06-16"},null,{"$f":"'Entry Sheet'!H30","v":0},0,100,200,0,0,100,200,0,0,0,0,100,200,{"$f":"E22*'Entry Sheet'!$Q$1","v":0},0,"Cu`tI","Cu`tI","",{"$f":"'Entry Sheet'!S30","v":"Tue"},"",14,0,0,0,0,0,0,0,0,0,0,0,0,{"$f":"IF('Entry Sheet'!$J$8='Calculation sheet'!W22,E22,0)","v":0},null,null,"ipAwj Coly nwl",32,3.2000000000000001E-2]
[17,{"$f":"'Entry Sheet'!D31","v":"2026-06-17"},null,{"$f":"'Entry Sheet'!H31","v":0},0,100,200,0,0,100,200,0,0,0,0,100,200,{"$f":"E23*'Entry Sheet'!$Q$1","v":0},0,"Cu`tI","Cu`tI","",{"$f":"'Entry Sheet'!S31","v":"Wed"},"",14,0,0,0,0,0,0,0,0,0,0,0,0,{"$f":"IF('Entry Sheet'!$J$8='Calculation sheet'!W23,E23,0)","v":0},null,null,"ipAwj kVI nwl",20,0.02]
[18,{"$f":"'Entry Sheet'!D32","v":"2026-06-18"},null,{"$f":"'Entry Sheet'!H32","v":0},0,100,200,0,0,100,200,0,0,0,0,100,200,{"$f":"E24*'Entry Sheet'!$Q$1","v":0},0,"Cu`tI","Cu`tI","",{"$f":"'Entry Sheet'!S32","v":"Thu"},"",14,0,0,0,0,0,0,0,0,0,0,0,0,{"$f":"IF('Entry Sheet'!$J$8='Calculation sheet'!W24,E24,0)","v":0},null,null,"ipAwj mosmI sbjI nwl",40,0.04]
[19,{"$f":"'Entry Sheet'!D33","v":"2026-06-19"},null,{"$f":"'Entry Sheet'!H33","v":0},0,100,200,0,0,100,200,0,0,0,0,100,200,{"$f":"E25*'Entry Sheet'!$Q$1","v":0},0,"Cu`tI","Cu`tI","",{"$f":"'Entry Sheet'!S33","v":"Fri"},"",14,0,0,0,0,0,0,0,0,0,0,0,0,{"$f":"IF('Entry Sheet'!$J$8='Calculation sheet'!W25,E25,0)","v":0},null,null,"AwlU kVI nwl",10,0.01]
[20,{"$f":"'Entry Sheet'!D34","v":"2026-06-20"},null,{"$f":"'Entry Sheet'!H34","v":0},0,100,200,0,0,100,200,0,0,0,0,100,200,{"$f":"E26*'Entry Sheet'!$Q$1","v":0},0,"Cu`tI","Cu`tI","",{"$f":"'Entry Sheet'!S34","v":"Sat"},"",14,0,0,0,0,0,0,0,0,0,0,0,0,{"$f":"IF('Entry Sheet'!$J$8='Calculation sheet'!W26,E26,0)","v":0},null,null,"AwlU Coly nwl",17,1.7000000000000001E-2]
[21,{"$f":"'Entry Sheet'!D35","v":"2026-06-21"},null,{"$f":"'Entry Sheet'!H35","v":0},0,100,200,0,0,100,200,0,0,0,0,100,200,{"$f":"E27*'Entry Sheet'!$Q$1","v":0},0,"Cu`tI","Cu`tI","",{"$f":"'Entry Sheet'!S35","v":"Sun"},"",13,0,0,0,0,0,0,0,0,0,0,0,0,{"$f":"IF('Entry Sheet'!$J$8='Calculation sheet'!W27,E27,0)","v":0},null,null,"moSmI sbjI dwl nwl",7,7.0000000000000001E-3]
[22,{"$f":"'Entry Sheet'!D36","v":"2026-06-22"},null,{"$f":"'Entry Sheet'!H36","v":0},0,100,200,0,0,100,200,0,0,0,0,100,200,{"$f":"E28*'Entry Sheet'!$Q$1","v":0},0,"Cu`tI","Cu`tI","",{"$f":"'Entry Sheet'!S36","v":"Mon"},"",14,0,0,0,0,0,0,0,0,0,0,0,0,{"$f":"IF('Entry Sheet'!$J$8='Calculation sheet'!W28,E28,0)","v":0},null,null,"moSmI sbjI ",75,7.4999999999999997E-2]
[23,{"$f":"'Entry Sheet'!D37","v":"2026-06-23"},null,{"$f":"'Entry Sheet'!H37","v":0},0,100,200,0,0,100,200,0,0,0,0,100,200,{"$f":"E29*'Entry Sheet'!$Q$1","v":0},0,"Cu`tI","Cu`tI","",{"$f":"'Entry Sheet'!S37","v":"Tue"},"",14,0,0,0,0,0,0,0,0,0,0,0,0,{"$f":"IF('Entry Sheet'!$J$8='Calculation sheet'!W29,E29,0)","v":0},null,null,"Awtw ipsweI",null,0]
[24,{"$f":"'Entry Sheet'!D38","v":"2026-06-24"},null,{"$f":"'Entry Sheet'!H38","v":0},0,100,200,0,0,100,200,0,0,0,0,100,200,{"$f":"E30*'Entry Sheet'!$Q$1","v":0},0,"Cu`tI","Cu`tI","",{"$f":"'Entry Sheet'!S38","v":"Wed"},"",14,0,0,0,0,0,0,0,0,0,0,0,0,{"$f":"IF('Entry Sheet'!$J$8='Calculation sheet'!W30,E30,0)","v":0},null,null,"bwlx",null,0]
[25,{"$f":"'Entry Sheet'!D39","v":"2026-06-25"},null,{"$f":"'Entry Sheet'!H39","v":0},0,100,200,0,0,100,200,0,0,0,0,100,200,{"$f":"E31*'Entry Sheet'!$Q$1","v":0},0,"Cu`tI","Cu`tI","",{"$f":"'Entry Sheet'!S39","v":"Thu"},"",14,0,0,0,0,0,0,0,0,0,0,0,0,{"$f":"IF('Entry Sheet'!$J$8='Calculation sheet'!W31,E31,0)","v":0}]
[26,{"$f":"'Entry Sheet'!D40","v":"2026-06-26"},null,{"$f":"'Entry Sheet'!H40","v":0},0,100,200,0,0,100,200,0,0,0,0,100,200,{"$f":"E32*'Entry Sheet'!$Q$1","v":0},0,"Cu`tI","Cu`tI","",{"$f":"'Entry Sheet'!S40","v":"Fri"},"",14,0,0,0,0,0,0,0,0,0,0,0,0,{"$f":"IF('Entry Sheet'!$J$8='Calculation sheet'!W32,E32,0)","v":0}]
[27,{"$f":"'Entry Sheet'!D41","v":"2026-06-27"},null,{"$f":"'Entry Sheet'!H41","v":0},0,100,200,0,0,100,200,0,0,0,0,100,200,{"$f":"E33*'Entry Sheet'!$Q$1","v":0},0,"Cu`tI","Cu`tI","",{"$f":"'Entry Sheet'!S41","v":"Sat"},"",14,0,0,0,0,0,0,0,0,0,0,0,0,{"$f":"IF('Entry Sheet'!$J$8='Calculation sheet'!W33,E33,0)","v":0}]
[28,{"$f":"'Entry Sheet'!D42","v":"2026-06-28"},null,{"$f":"'Entry Sheet'!H42","v":0},0,100,200,0,0,100,200,0,0,0,0,100,200,{"$f":"E34*'Entry Sheet'!$Q$1","v":0},0,"Cu`tI","Cu`tI","",{"$f":"'Entry Sheet'!S42","v":"Sun"},"",13,0,0,0,0,0,0,0,0,0,0,0,0,{"$f":"IF('Entry Sheet'!$J$8='Calculation sheet'!W34,E34,0)","v":0}]
[29,{"$f":"'Entry Sheet'!D43","v":"2026-06-29"},null,{"$f":"'Entry Sheet'!H43","v":0},0,{"$f":"P34","v":100},{"$f":"Q34","v":200},0,0,{"$f":"F35+H35","v":100},{"$f":"G35+I35","v":200},0,0,{"$f":"N34+L35","v":0},{"$f":"O34+M35","v":0},{"$f":"J35-L35","v":100},{"$f":"K35-M35","v":200},{"$f":"E35*'Entry Sheet'!$Q$1","v":0},{"$f":"S34+R35","v":0},"Cu`tI","Cu`tI","",{"$f":"'Entry Sheet'!S43","v":"Mon"},"",14,0,0,0,0,0,0,0,0,0,0,0,0,{"$f":"IF('Entry Sheet'!$J$8='Calculation sheet'!W35,E35,0)","v":0}]
[30,{"$f":"'Entry Sheet'!D44","v":"2026-06-30"},null,{"$f":"'Entry Sheet'!H44","v":0},0,100,200,0,0,100,200,0,0,0,0,100,200,{"$f":"E36*'Entry Sheet'!$Q$1","v":0},0,"Cu`tI","Cu`tI","",{"$f":"'Entry Sheet'!S44","v":"Tue"},"",14,0,0,0,0,0,0,0,0,0,0,0,0,{"$f":"IF('Entry Sheet'!$J$8='Calculation sheet'!W36,E36,0)","v":0}]
[31,{"$f":"'Entry Sheet'!D45","v":""},null,{"$f":"'Entry Sheet'!H45","v":0},0,{"$f":"P36","v":100},{"$f":"Q36","v":200},0,0,{"$f":"F37+H37","v":100},{"$f":"G37+I37","v":200},0,0,0,0,100,200,{"$f":"E37*'Entry Sheet'!$Q$1","v":0},0,"Cu`tI","Cu`tI","",{"$f":"'Entry Sheet'!S45","v":""},"",14,0,0,0,0,0,0,0,0,0,0,0,0,{"$f":"IF('Entry Sheet'!$J$8='Calculation sheet'!W37,E37,0)","v":0}]
[null,"joV",{"$f":"SUMIF(D7:D37,\">0\",C7:C37)","v":0},{"$f":"'Entry Sheet'!H46","v":0},{"$f":"SUM(E6:E37)","v":0},null,null,{"$f":"'Entry Sheet'!A20","v":0},{"$f":"'Entry Sheet'!B20","v":0},{"$f":"'Entry Sheet'!C20","v":0},null,{"$f":"SUM(L7:L37)","v":0},{"$f":"SUM(M7:M37)","v":0},null,null,null,null,{"$f":"SUM(R7:R37)","v":0},null,null,null,null,null,"Total",null,{"$f":"SUM(Z7:Z37)","v":0},{"$f":"SUM(AA7:AA37)","v":0},0,0,0,0,{"$f":"SUM(AF7:AF37)","v":0},0,0,0,0,0,{"$f":"SUM(AL7:AL37)","v":0}]
[null,null,null,null,null,null,null,null,null,null,null,null,null,null,null,null,null,{"$f":"E38*'Entry Sheet'!$Q$1","v":0}]
[null,null,null,null,null,null,null,null,null,null,null,null,null,null,null,null,null,{"$f":"IF(R38=R39,\"Match\",\"Error\")","v":"Match"}]

{"sheet":"Goswara","index":4,"n_rows":37,"n_cols":7,"rows_kept":37,"cut":false,"hidden":false,"merged":[[0,0,0,5],[4,4,4,6],[4,0,4,3],[3,4,3,5],[1,0,1,6],[2,0,2,6]]}
["kYS bu`k qy mwhvwrI (Abstract)gosvwrw (jmwq 6vI qo 8vI)"]
[{"$f":"'Entry Sheet'!B3&\" blwk \"&'Entry Sheet'!B5","v":"srkwrI hweI skUl  blwk KMnw"}]
[]
[null,null,null,"mhInw  :",{"$f":"'Entry Sheet'!J3&\" - \"&'Entry Sheet'!J5","v":"Jun - 2026"}]
["kuikMg kwst dI pRpqI (ru ivc)",null,null,null,"Krcy dw vyrvw"]
["imqI","muFlw bkwieAw","pRwpqI","ku`l joV",1,"Bojn krn vwly ku`l ividAwrQIAW dI igxqI",{"$f":"'Entry Sheet'!H46","v":0}]
[1,{"$f":"'Entry Sheet'!B37","v":0},{"$f":"'Entry Sheet'!B33","v":0},{"$f":"B7+C7-'Calculation sheet'!S7","v":0},2,"skUl ivc vrikMg idnW dI igxqI",{"$f":"'Entry Sheet'!Q9","v":0}]
[2,null,null,{"$f":"D7-'Calculation sheet'!R8","v":0},3,{"$f":"\"mwhvwrI rupey \"& 'Entry Sheet'!Q1  & \" pRqI b`cw pRqI idn nwl ku`l Krcw\"","v":"mwhvwrI rupey 10.17 pRqI b`cw pRqI idn nwl ku`l Krcw"},{"$f":"'Entry Sheet'!B32","v":0}]
[3,null,null,{"$f":"D8-'Calculation sheet'!R9","v":0}]
[4,null,null,{"$f":"D9-'Calculation sheet'!R10","v":0},4,"kuikMg kwst dI ku`l rkm",{"$f":"B7+C7","v":0}]
[5,null,null,{"$f":"D10-'Calculation sheet'!R11","v":0},5,"mhIny dy AMq qy kuikMg kwst dI bkwieAW rkm",{"$f":"G10-G8","v":0}]
[6,null,null,{"$f":"D11-'Calculation sheet'!R12","v":0},null,"(kwlm 4-3)"]
[7,null,null,{"$f":"D12-'Calculation sheet'!R13","v":0}]
[8,null,null,{"$f":"D13-'Calculation sheet'!R14","v":0}]
[9,null,null,{"$f":"D14-'Calculation sheet'!R15","v":0},null,"kuikMg kwst dI bkwieAw rkm",{"$f":"B7","v":0}]
[10,null,null,{"$f":"D15-'Calculation sheet'!R16","v":0},null,"Awmdn",{"$f":"C7","v":0}]
[11,null,null,{"$f":"D16-'Calculation sheet'!R17","v":0},null,"ku`l Awmdn",{"$f":"G16+G15","v":0}]
[12,null,null,{"$f":"D17-'Calculation sheet'!R18","v":0},null,"ies mhIny dw Krc",{"$f":"G8","v":0}]
[13,null,null,{"$f":"D18-'Calculation sheet'!R19","v":0},null,"bkwieAw kuikMg kwst dI rkm",{"$f":"G17-G18","v":0}]
[14,null,null,{"$f":"D19-'Calculation sheet'!R20","v":0}]
[15,null,null,{"$f":"D20-'Calculation sheet'!R21","v":0}]
[16,null,null,{"$f":"D21-'Calculation sheet'!R22","v":0},null,"k`uk Bytw dI ipClI bkwieAw rkm"]
[17,null,null,{"$f":"D22-'Calculation sheet'!R23","v":0},null,"Awmdn"]
[18,null,null,{"$f":"D23-'Calculation sheet'!R24","v":0},null,"ku`l Awmdn"]
[19,null,null,{"$f":"D24-'Calculation sheet'!R25","v":0},null,"ies mhIny dw Krc (qnKwh)"]
[20,null,null,{"$f":"D25-'Calculation sheet'!R26","v":0},null,"bkwieAw ku`k Bytw dI rkm"]
[21,null,null,{"$f":"D26-'Calculation sheet'!R27","v":0}]
[22,null,null,{"$f":"D27-'Calculation sheet'!R28","v":0}]
[23,null,null,{"$f":"D28-'Calculation sheet'!R29","v":0}]
[24,null,null,{"$f":"D29-'Calculation sheet'!R30","v":0}]
[25,null,null,{"$f":"D30-'Calculation sheet'!R31","v":0}]
[26,null,null,{"$f":"D31-'Calculation sheet'!R32","v":0}]
[27,null,null,{"$f":"D32-'Calculation sheet'!R33","v":0}]
[28,null,null,{"$f":"D33-'Calculation sheet'!R34","v":0}]
[29,null,null,{"$f":"D34-'Calculation sheet'!R35","v":0}]
[30,null,null,{"$f":"D35-'Calculation sheet'!R36","v":0}]
[31,null,null,{"$f":"D36-'Calculation sheet'!R37","v":0}]

{"sheet":"Annual Report","index":5,"n_rows":618,"n_cols":18,"rows_kept":618,"cut":false,"hidden":false,"merged":[[1,15,2,15],[1,16,2,16],[1,17,2,17],[1,14,2,14],[0,0,0,14],[1,1,1,2],[1,3,1,4],[1,5,1,6],[1,7,1,8],[1,9,2,9],[1,10,2,10],[1,11,2,11],[1,12,2,12],[1,13,2,13]]}
["Month Wise Record"]
[null,"Opening Balance",null,"Receiving This Month",null,"Consumption (in Kg)",null,"Balance at End",null,"Total Students","Cookng Cost of All Std.","Fund Allocate at PFMS This Month","Fund Utilize AS PFMS (in RS.)","Balance Fund in PFMS","Fund Surplus/Short As Total Cost ","Total Pieces Fruit  Given","Amount of Food","Woking Days"]
["Month &Year","Wheat","Rice","Wheat","Rice","Wheat","Rice","Wheet","Rice"]
["2024-09-01",0,0,0,0,0,0,{"$f":"(B4+D4)-F4","v":0},{"$f":"(C4+E4)-G4","v":0},0,0,null,null,{"$f":"L4-M4","v":0},{"$f":"L4-K4","v":0}]
["2025-01-01",100,200,0,0,165,180,{"$f":"(B5+D5)-F5","v":-65},20,2300,21366.999999999996,10000,20000,{"$f":"L5-M5","v":-10000},{"$f":"L5-K5","v":-11366.999999999996}]
[null,null,null,null,null,null,null,0,0,null,null,null,null,0,0]
[null,null,null,null,null,null,null,0,0,null,null,null,null,0,0]
[null,null,null,null,null,null,null,0,0,null,null,null,null,0,0]
[null,null,null,null,null,null,null,0,0,null,null,null,null,0,0]
[null,null,null,null,null,null,null,0,0,null,null,null,null,0,0]
[null,null,null,null,null,null,null,0,0,null,null,null,null,0,0]
[null,null,null,null,null,null,null,0,0,null,null,null,null,0,0]
[null,null,null,null,null,null,null,0,0,null,null,null,null,0,0]
[null,null,null,null,null,null,null,0,0,null,null,null,null,0,0]
[null,null,null,null,null,null,null,0,0,null,null,null,null,0,0]
[null,null,null,null,null,null,null,0,0,null,null,null,null,0,0]
[null,null,null,null,null,null,null,0,0,null,null,null,null,0,0]
[null,null,null,null,null,null,null,0,0,null,null,null,null,0,0]
[null,null,null,null,null,null,null,0,0,null,null,null,null,0,0]
[null,null,null,null,null,null,null,0,0,null,null,null,null,0,0]
[null,null,null,null,null,null,null,0,0,null,null,null,null,0,0]
[null,null,null,null,null,null,null,0,0,null,null,null,null,0,0]
[null,null,null,null,null,null,null,0,0,null,null,null,null,0,0]
[null,null,null,null,null,null,null,0,0,null,null,null,null,0,0]
[null,null,null,null,null,null,null,0,0,null,null,null,null,0,0]
[null,null,null,null,null,null,null,0,0,null,null,null,null,0,0]
[null,null,null,null,null,null,null,0,0,null,null,null,null,0,0]
[null,null,null,null,null,null,null,0,0,null,null,null,null,0,0]
[null,null,null,null,null,null,null,0,0,null,null,null,null,0,0]
[null,null,null,null,null,null,null,0,0,null,null,null,null,0,0]
[null,null,null,null,null,null,null,0,0,null,null,null,null,0,0]
[null,null,null,null,null,null,null,0,0,null,null,null,null,0,0]
[null,null,null,null,null,null,null,0,0,null,null,null,null,0,0]
[null,null,null,null,null,null,null,0,0,null,null,null,null,0,0]
[null,null,null,null,null,null,null,0,0,null,null,null,null,0,0]
[null,null,null,null,null,null,null,0,0,null,null,null,null,0,0]
[null,null,null,null,null,null,null,0,0,null,null,null,null,0,0]
[null,null,null,null,null,null,null,0,0,null,null,null,null,0,0]
[null,null,null,null,null,null,null,0,0,null,null,null,null,0,0]
[null,null,null,null,null,null,null,0,0,null,null,null,null,0,0]
[null,null,null,null,null,null,null,0,0,null,null,null,null,0,0]
[null,null,null,null,null,null,null,0,0,null,null,null,null,0,0]
[null,null,null,null,null,null,null,0,0,null,null,null,null,0,0]
[null,null,null,null,null,null,null,0,0,null,null,null,null,0,0]
[null,null,null,null,null,null,null,0,0,null,null,null,null,0,0]
[null,null,null,null,null,null,null,0,0,null,null,null,null,0,0]
[null,null,null,null,null,null,null,0,0,null,null,null,null,0,0]
[null,null,null,null,null,null,null,0,0,null,null,null,null,0,0]
[null,null,null,null,null,null,null,0,0,null,null,null,null,0,0]
[null,null,null,null,null,null,null,0,0,null,null,null,null,0,0]
[null,null,null,null,null,null,null,0,0,null,null,null,null,0,0]
[null,null,null,null,null,null,null,0,0,null,null,null,null,0,0]
[null,null,null,null,null,null,null,0,0,null,null,null,null,0,0]
[null,null,null,null,null,null,null,0,0,null,null,null,null,0,0]
[null,null,null,null,null,null,null,0,0,null,null,null,null,0,0]
[null,null,null,null,null,null,null,0,0,null,null,null,null,0,0]
[null,null,null,null,null,null,null,0,0,null,null,null,null,0,0]
[null,null,null,null,null,null,null,0,0,null,null,null,null,0,0]
[null,null,null,null,null,null,null,0,0,null,null,null,null,0,0]
[null,null,null,null,null,null,null,0,0,null,null,null,null,0,0]
[null,null,null,null,null,null,null,0,0,null,null,null,null,0,0]
[null,null,null,null,null,null,null,0,0,null,null,null,null,0,0]
[null,null,null,null,null,null,null,0,0,null,null,null,null,0,0]
[null,null,null,null,null,null,null,0,0,null,null,null,null,0,0]
[null,null,null,null,null,null,null,0,0,null,null,null,null,0,0]
[null,null,null,null,null,null,null,0,0,null,null,null,null,0,0]
[null,null,null,null,null,null,null,0,0,null,null,null,null,0,0]
[null,null,null,null,null,null,null,0,0,null,null,null,null,0,0]
[null,null,null,null,null,null,null,{"$f":"(B69+D69)-F69","v":0},0,null,null,null,null,{"$f":"L69-M69","v":0},{"$f":"L69-K69","v":0}]
[null,null,null,null,null,null,null,0,0,null,null,null,null,0,0]
[null,null,null,null,null,null,null,0,0,null,null,null,null,0,0]
[null,null,null,null,null,null,null,0,0,null,null,null,null,0,0]
[null,null,null,null,null,null,null,0,0,null,null,null,null,0,0]
[null,null,null,null,null,null,null,0,0,null,null,null,null,0,0]
[null,null,null,null,null,null,null,0,0,null,null,null,null,0,0]
[null,null,null,null,null,null,null,0,0,null,null,null,null,0,0]
[null,null,null,null,null,null,null,0,0,null,null,null,null,0,0]
[null,null,null,null,null,null,null,0,0,null,null,null,null,0,0]
[null,null,null,null,null,null,null,0,0,null,null,null,null,0,0]
[null,null,null,null,null,null,null,0,0,null,null,null,null,0,0]
[null,null,null,null,null,null,null,0,0,null,null,null,null,0,0]
[null,null,null,null,null,null,null,0,0,null,null,null,null,0,0]
[null,null,null,null,null,null,null,0,0,null,null,null,null,0,0]
[null,null,null,null,null,null,null,0,0,null,null,null,null,0,0]
[null,null,null,null,null,null,null,0,0,null,null,null,null,0,0]
[null,null,null,null,null,null,null,0,0,null,null,null,null,0,0]
[null,null,null,null,null,null,null,0,0,null,null,null,null,0,0]
[null,null,null,null,null,null,null,0,0,null,null,null,null,0,0]
[null,null,null,null,null,null,null,0,0,null,null,null,null,0,0]
[null,null,null,null,null,null,null,0,0,null,null,null,null,0,0]
[null,null,null,null,null,null,null,0,0,null,null,null,null,0,0]
[null,null,null,null,null,null,null,0,0,null,null,null,null,0,0]
[null,null,null,null,null,null,null,0,0,null,null,null,null,0,0]
[null,null,null,null,null,null,null,0,0,null,null,null,null,0,0]
[null,null,null,null,null,null,null,0,0,null,null,null,null,0,0]
[null,null,null,null,null,null,null,0,0,null,null,null,null,0,0]
[null,null,null,null,null,null,null,0,0,null,null,null,null,0,0]
[null,null,null,null,null,null,null,0,0,null,null,null,null,0,0]
[null,null,null,null,null,null,null,0,0,null,null,null,null,0,0]
[null,null,null,null,null,null,null,0,0,null,null,null,null,0,0]
[null,null,null,null,null,null,null,0,0,null,null,null,null,0,0]
[null,null,null,null,null,null,null,0,0,null,null,null,null,0,0]
[null,null,null,null,null,null,null,0,0,null,null,null,null,0,0]
[null,null,null,null,null,null,null,0,0,null,null,null,null,0,0]
[null,null,null,null,null,null,null,0,0,null,null,null,null,0,0]
[null,null,null,null,null,null,null,0,0,null,null,null,null,0,0]
[null,null,null,null,null,null,null,0,0,null,null,null,null,0,0]
[null,null,null,null,null,null,null,0,0,null,null,null,null,0,0]
[null,null,null,null,null,null,null,0,0,null,null,null,null,0,0]
[null,null,null,null,null,null,null,0,0,null,null,null,null,0,0]
[null,null,null,null,null,null,null,0,0,null,null,null,null,0,0]
[null,null,null,null,null,null,null,0,0,null,null,null,null,0,0]
[null,null,null,null,null,null,null,0,0,null,null,null,null,0,0]
[null,null,null,null,null,null,null,0,0,null,null,null,null,0,0]
[null,null,null,null,null,null,null,0,0,null,null,null,null,0,0]
[null,null,null,null,null,null,null,0,0,null,null,null,null,0,0]
[null,null,null,null,null,null,null,0,0,null,null,null,null,0,0]
[null,null,null,null,null,null,null,0,0,null,null,null,null,0,0]
[null,null,null,null,null,null,null,0,0,null,null,null,null,0,0]
[null,null,null,null,null,null,null,0,0,null,null,null,null,0,0]
[null,null,null,null,null,null,null,0,0,null,null,null,null,0,0]
[null,null,null,null,null,null,null,0,0,null,null,null,null,0,0]
[null,null,null,null,null,null,null,0,0,null,null,null,null,0,0]
[null,null,null,null,null,null,null,0,0,null,null,null,null,0,0]
[null,null,null,null,null,null,null,0,0,null,null,null,null,0,0]
[null,null,null,null,null,null,null,0,0,null,null,null,null,0,0]
[null,null,null,null,null,null,null,0,0,null,null,null,null,0,0]
[null,null,null,null,null,null,null,0,0,null,null,null,null,0,0]
[null,null,null,null,null,null,null,0,0,null,null,null,null,0,0]
[null,null,null,null,null,null,null,0,0,null,null,null,null,0,0]
[null,null,null,null,null,null,null,0,0,null,null,null,null,0,0]
[null,null,null,null,null,null,null,0,0,null,null,null,null,0,0]
[null,null,null,null,null,null,null,{"$f":"(B133+D133)-F133","v":0},0,null,null,null,null,{"$f":"L133-M133","v":0},{"$f":"L133-K133","v":0}]
[null,null,null,null,null,null,null,0,0,null,null,null,null,0,0]
[null,null,null,null,null,null,null,0,0,null,null,null,null,0,0]
[null,null,null,null,null,null,null,0,0,null,null,null,null,0,0]
[null,null,null,null,null,null,null,0,0,null,null,null,null,0,0]
[null,null,null,null,null,null,null,0,0,null,null,null,null,0,0]
[null,null,null,null,null,null,null,0,0,null,null,null,null,0,0]
[null,null,null,null,null,null,null,0,0,null,null,null,null,0,0]
[null,null,null,null,null,null,null,0,0,null,null,null,null,0,0]
[null,null,null,null,null,null,null,0,0,null,null,null,null,0,0]
[null,null,null,null,null,null,null,0,0,null,null,null,null,0,0]
[null,null,null,null,null,null,null,0,0,null,null,null,null,0,0]
[null,null,null,null,null,null,null,0,0,null,null,null,null,0,0]
[null,null,null,null,null,null,null,0,0,null,null,null,null,0,0]
[null,null,null,null,null,null,null,0,0,null,null,null,null,0,0]
[null,null,null,null,null,null,null,0,0,null,null,null,null,0,0]
[null,null,null,null,null,null,null,0,0,null,null,null,null,0,0]
[null,null,null,null,null,null,null,0,0,null,null,null,null,0,0]
[null,null,null,null,null,null,null,0,0,null,null,null,null,0,0]
[null,null,null,null,null,null,null,0,0,null,null,null,null,0,0]
[null,null,null,null,null,null,null,0,0,null,null,null,null,0,0]
[null,null,null,null,null,null,null,0,0,null,null,null,null,0,0]
[null,null,null,null,null,null,null,0,0,null,null,null,null,0,0]
[null,null,null,null,null,null,null,0,0,null,null,null,null,0,0]
[null,null,null,null,null,null,null,0,0,null,null,null,null,0,0]
[null,null,null,null,null,null,null,0,0,null,null,null,null,0,0]
[null,null,null,null,null,null,null,0,0,null,null,null,null,0,0]
[null,null,null,null,null,null,null,0,0,null,null,null,null,0,0]
[null,null,null,null,null,null,null,0,0,null,null,null,null,0,0]
[null,null,null,null,null,null,null,0,0,null,null,null,null,0,0]
[null,null,null,null,null,null,null,0,0,null,null,null,null,0,0]
[null,null,null,null,null,null,null,0,0,null,null,null,null,0,0]
[null,null,null,null,null,null,null,0,0,null,null,null,null,0,0]
[null,null,null,null,null,null,null,0,0,null,null,null,null,0,0]
[null,null,null,null,null,null,null,0,0,null,null,null,null,0,0]
[null,null,null,null,null,null,null,0,0,null,null,null,null,0,0]
[null,null,null,null,null,null,null,0,0,null,null,null,null,0,0]
[null,null,null,null,null,null,null,0,0,null,null,null,null,0,0]
[null,null,null,null,null,null,null,0,0,null,null,null,null,0,0]
[null,null,null,null,null,null,null,0,0,null,null,null,null,0,0]
[null,null,null,null,null,null,null,0,0,null,null,null,null,0,0]
[null,null,null,null,null,null,null,0,0,null,null,null,null,0,0]
[null,null,null,null,null,null,null,0,0,null,null,null,null,0,0]
[null,null,null,null,null,null,null,0,0,null,null,null,null,0,0]
[null,null,null,null,null,null,null,0,0,null,null,null,null,0,0]
[null,null,null,null,null,null,null,0,0,null,null,null,null,0,0]
[null,null,null,null,null,null,null,0,0,null,null,null,null,0,0]
[null,null,null,null,null,null,null,0,0,null,null,null,null,0,0]
[null,null,null,null,null,null,null,0,0,null,null,null,null,0,0]
[null,null,null,null,null,null,null,0,0,null,null,null,null,0,0]
[null,null,null,null,null,null,null,0,0,null,null,null,null,0,0]
[null,null,null,null,null,null,null,0,0,null,null,null,null,0,0]
[null,null,null,null,null,null,null,0,0,null,null,null,null,0,0]
[null,null,null,null,null,null,null,0,0,null,null,null,null,0,0]
[null,null,null,null,null,null,null,0,0,null,null,null,null,0,0]
[null,null,null,null,null,null,null,0,0,null,null,null,null,0,0]
[null,null,null,null,null,null,null,0,0,null,null,null,null,0,0]
[null,null,null,null,null,null,null,0,0,null,null,null,null,0,0]
[null,null,null,null,null,null,null,0,0,null,null,null,null,0,0]
[null,null,null,null,null,null,null,0,0,null,null,null,null,0,0]
[null,null,null,null,null,null,null,0,0,null,null,null,null,0,0]
[null,null,null,null,null,null,null,0,0,null,null,null,null,0,0]
[null,null,null,null,null,null,null,0,0,null,null,null,null,0,0]
[null,null,null,null,null,null,null,0,0,null,null,null,null,0,0]
[null,null,null,null,null,null,null,{"$f":"(B197+D197)-F197","v":0},0,null,null,null,null,{"$f":"L197-M197","v":0},{"$f":"L197-K197","v":0}]
[null,null,null,null,null,null,null,0,0,null,null,null,null,0,0]
[null,null,null,null,null,null,null,0,0,null,null,null,null,0,0]
[null,null,null,null,null,null,null,0,0,null,null,null,null,0,0]
[null,null,null,null,null,null,null,0,0,null,null,null,null,0,0]
[null,null,null,null,null,null,null,0,0,null,null,null,null,0,0]
[null,null,null,null,null,null,null,0,0,null,null,null,null,0,0]
[null,null,null,null,null,null,null,0,0,null,null,null,null,0,0]
[null,null,null,null,null,null,null,0,0,null,null,null,null,0,0]
[null,null,null,null,null,null,null,0,0,null,null,null,null,0,0]
[null,null,null,null,null,null,null,0,0,null,null,null,null,0,0]
[null,null,null,null,null,null,null,0,0,null,null,null,null,0,0]
[null,null,null,null,null,null,null,0,0,null,null,null,null,0,0]
[null,null,null,null,null,null,null,0,0,null,null,null,null,0,0]
[null,null,null,null,null,null,null,0,0,null,null,null,null,0,0]
[null,null,null,null,null,null,null,0,0,null,null,null,null,0,0]
[null,null,null,null,null,null,null,0,0,null,null,null,null,0,0]
[null,null,null,null,null,null,null,0,0,null,null,null,null,0,0]
[null,null,null,null,null,null,null,0,0,null,null,null,null,0,0]
[null,null,null,null,null,null,null,0,0,null,null,null,null,0,0]
[null,null,null,null,null,null,null,0,0,null,null,null,null,0,0]
[null,null,null,null,null,null,null,0,0,null,null,null,null,0,0]
[null,null,null,null,null,null,null,0,0,null,null,null,null,0,0]
[null,null,null,null,null,null,null,0,0,null,null,null,null,0,0]
[null,null,null,null,null,null,null,0,0,null,null,null,null,0,0]
[null,null,null,null,null,null,null,0,0,null,null,null,null,0,0]
[null,null,null,null,null,null,null,0,0,null,null,null,null,0,0]
[null,null,null,null,null,null,null,0,0,null,null,null,null,0,0]
[null,null,null,null,null,null,null,0,0,null,null,null,null,0,0]
[null,null,null,null,null,null,null,0,0,null,null,null,null,0,0]
[null,null,null,null,null,null,null,0,0,null,null,null,null,0,0]
[null,null,null,null,null,null,null,0,0,null,null,null,null,0,0]
[null,null,null,null,null,null,null,0,0,null,null,null,null,0,0]
[null,null,null,null,null,null,null,0,0,null,null,null,null,0,0]
[null,null,null,null,null,null,null,0,0,null,null,null,null,0,0]
[null,null,null,null,null,null,null,0,0,null,null,null,null,0,0]
[null,null,null,null,null,null,null,0,0,null,null,null,null,0,0]
[null,null,null,null,null,null,null,0,0,null,null,null,null,0,0]
[null,null,null,null,null,null,null,0,0,null,null,null,null,0,0]
[null,null,null,null,null,null,null,0,0,null,null,null,null,0,0]
[null,null,null,null,null,null,null,0,0,null,null,null,null,0,0]
[null,null,null,null,null,null,null,0,0,null,null,null,null,0,0]
[null,null,null,null,null,null,null,0,0,null,null,null,null,0,0]
[null,null,null,null,null,null,null,0,0,null,null,null,null,0,0]
[null,null,null,null,null,null,null,0,0,null,null,null,null,0,0]
[null,null,null,null,null,null,null,0,0,null,null,null,null,0,0]
[null,null,null,null,null,null,null,0,0,null,null,null,null,0,0]
[null,null,null,null,null,null,null,0,0,null,null,null,null,0,0]
[null,null,null,null,null,null,null,0,0,null,null,null,null,0,0]
[null,null,null,null,null,null,null,0,0,null,null,null,null,0,0]
[null,null,null,null,null,null,null,0,0,null,null,null,null,0,0]
[null,null,null,null,null,null,null,0,0,null,null,null,null,0,0]
[null,null,null,null,null,null,null,0,0,null,null,null,null,0,0]
[null,null,null,null,null,null,null,0,0,null,null,null,null,0,0]
[null,null,null,null,null,null,null,0,0,null,null,null,null,0,0]
[null,null,null,null,null,null,null,0,0,null,null,null,null,0,0]
[null,null,null,null,null,null,null,0,0,null,null,null,null,0,0]
[null,null,null,null,null,null,null,0,0,null,null,null,null,0,0]
[null,null,null,null,null,null,null,0,0,null,null,null,null,0,0]
[null,null,null,null,null,null,null,0,0,null,null,null,null,0,0]
[null,null,null,null,null,null,null,0,0,null,null,null,null,0,0]
[null,null,null,null,null,null,null,0,0,null,null,null,null,0,0]
[null,null,null,null,null,null,null,0,0,null,null,null,null,0,0]
[null,null,null,null,null,null,null,0,0,null,null,null,null,0,0]
[null,null,null,null,null,null,null,{"$f":"(B261+D261)-F261","v":0},0,null,null,null,null,{"$f":"L261-M261","v":0},{"$f":"L261-K261","v":0}]
[null,null,null,null,null,null,null,0,0,null,null,null,null,0,0]
[null,null,null,null,null,null,null,0,0,null,null,null,null,0,0]
[null,null,null,null,null,null,null,0,0,null,null,null,null,0,0]
[null,null,null,null,null,null,null,0,0,null,null,null,null,0,0]
[null,null,null,null,null,null,null,0,0,null,null,null,null,0,0]
[null,null,null,null,null,null,null,0,0,null,null,null,null,0,0]
[null,null,null,null,null,null,null,0,0,null,null,null,null,0,0]
[null,null,null,null,null,null,null,0,0,null,null,null,null,0,0]
[null,null,null,null,null,null,null,0,0,null,null,null,null,0,0]
[null,null,null,null,null,null,null,0,0,null,null,null,null,0,0]
[null,null,null,null,null,null,null,0,0,null,null,null,null,0,0]
[null,null,null,null,null,null,null,0,0,null,null,null,null,0,0]
[null,null,null,null,null,null,null,0,0,null,null,null,null,0,0]
[null,null,null,null,null,null,null,0,0,null,null,null,null,0,0]
[null,null,null,null,null,null,null,0,0,null,null,null,null,0,0]
[null,null,null,null,null,null,null,0,0,null,null,null,null,0,0]
[null,null,null,null,null,null,null,0,0,null,null,null,null,0,0]
[null,null,null,null,null,null,null,0,0,null,null,null,null,0,0]
[null,null,null,null,null,null,null,0,0,null,null,null,null,0,0]
[null,null,null,null,null,null,null,0,0,null,null,null,null,0,0]
[null,null,null,null,null,null,null,0,0,null,null,null,null,0,0]
[null,null,null,null,null,null,null,0,0,null,null,null,null,0,0]
[null,null,null,null,null,null,null,0,0,null,null,null,null,0,0]
[null,null,null,null,null,null,null,0,0,null,null,null,null,0,0]
[null,null,null,null,null,null,null,0,0,null,null,null,null,0,0]
[null,null,null,null,null,null,null,0,0,null,null,null,null,0,0]
[null,null,null,null,null,null,null,0,0,null,null,null,null,0,0]
[null,null,null,null,null,null,null,0,0,null,null,null,null,0,0]
[null,null,null,null,null,null,null,0,0,null,null,null,null,0,0]
[null,null,null,null,null,null,null,0,0,null,null,null,null,0,0]
[null,null,null,null,null,null,null,0,0,null,null,null,null,0,0]
[null,null,null,null,null,null,null,0,0,null,null,null,null,0,0]
[null,null,null,null,null,null,null,0,0,null,null,null,null,0,0]
[null,null,null,null,null,null,null,0,0,null,null,null,null,0,0]
[null,null,null,null,null,null,null,0,0,null,null,null,null,0,0]
[null,null,null,null,null,null,null,0,0,null,null,null,null,0,0]
[null,null,null,null,null,null,null,0,0,null,null,null,null,0,0]
[null,null,null,null,null,null,null,0,0,null,null,null,null,0,0]
[null,null,null,null,null,null,null,0,0,null,null,null,null,0,0]
[null,null,null,null,null,null,null,0,0,null,null,null,null,0,0]
[null,null,null,null,null,null,null,0,0,null,null,null,null,0,0]
[null,null,null,null,null,null,null,0,0,null,null,null,null,0,0]
[null,null,null,null,null,null,null,0,0,null,null,null,null,0,0]
[null,null,null,null,null,null,null,0,0,null,null,null,null,0,0]
[null,null,null,null,null,null,null,0,0,null,null,null,null,0,0]
[null,null,null,null,null,null,null,0,0,null,null,null,null,0,0]
[null,null,null,null,null,null,null,0,0,null,null,null,null,0,0]
[null,null,null,null,null,null,null,0,0,null,null,null,null,0,0]
[null,null,null,null,null,null,null,0,0,null,null,null,null,0,0]
[null,null,null,null,null,null,null,0,0,null,null,null,null,0,0]
[null,null,null,null,null,null,null,0,0,null,null,null,null,0,0]
[null,null,null,null,null,null,null,0,0,null,null,null,null,0,0]
[null,null,null,null,null,null,null,0,0,null,null,null,null,0,0]
[null,null,null,null,null,null,null,0,0,null,null,null,null,0,0]
[null,null,null,null,null,null,null,0,0,null,null,null,null,0,0]
[null,null,null,null,null,null,null,0,0,null,null,null,null,0,0]
[null,null,null,null,null,null,null,0,0,null,null,null,null,0,0]
[null,null,null,null,null,null,null,0,0,null,null,null,null,0,0]
[null,null,null,null,null,null,null,0,0,null,null,null,null,0,0]
[null,null,null,null,null,null,null,0,0,null,null,null,null,0,0]
[null,null,null,null,null,null,null,0,0,null,null,null,null,0,0]
[null,null,null,null,null,null,null,0,0,null,null,null,null,0,0]
[null,null,null,null,null,null,null,0,0,null,null,null,null,0,0]
[null,null,null,null,null,null,null,{"$f":"(B325+D325)-F325","v":0},0,null,null,null,null,{"$f":"L325-M325","v":0},{"$f":"L325-K325","v":0}]
[null,null,null,null,null,null,null,0,0,null,null,null,null,0,0]
[null,null,null,null,null,null,null,0,0,null,null,null,null,0,0]
[null,null,null,null,null,null,null,0,0,null,null,null,null,0,0]
[null,null,null,null,null,null,null,0,0,null,null,null,null,0,0]
[null,null,null,null,null,null,null,0,0,null,null,null,null,0,0]
[null,null,null,null,null,null,null,0,0,null,null,null,null,0,0]
[null,null,null,null,null,null,null,0,0,null,null,null,null,0,0]
[null,null,null,null,null,null,null,0,0,null,null,null,null,0,0]
[null,null,null,null,null,null,null,0,0,null,null,null,null,0,0]
[null,null,null,null,null,null,null,0,0,null,null,null,null,0,0]
[null,null,null,null,null,null,null,0,0,null,null,null,null,0,0]
[null,null,null,null,null,null,null,0,0,null,null,null,null,0,0]
[null,null,null,null,null,null,null,0,0,null,null,null,null,0,0]
[null,null,null,null,null,null,null,0,0,null,null,null,null,0,0]
[null,null,null,null,null,null,null,0,0,null,null,null,null,0,0]
[null,null,null,null,null,null,null,0,0,null,null,null,null,0,0]
[null,null,null,null,null,null,null,0,0,null,null,null,null,0,0]
[null,null,null,null,null,null,null,0,0,null,null,null,null,0,0]
[null,null,null,null,null,null,null,0,0,null,null,null,null,0,0]
[null,null,null,null,null,null,null,0,0,null,null,null,null,0,0]
[null,null,null,null,null,null,null,0,0,null,null,null,null,0,0]
[null,null,null,null,null,null,null,0,0,null,null,null,null,0,0]
[null,null,null,null,null,null,null,0,0,null,null,null,null,0,0]
[null,null,null,null,null,null,null,0,0,null,null,null,null,0,0]
[null,null,null,null,null,null,null,0,0,null,null,null,null,0,0]
[null,null,null,null,null,null,null,0,0,null,null,null,null,0,0]
[null,null,null,null,null,null,null,0,0,null,null,null,null,0,0]
[null,null,null,null,null,null,null,0,0,null,null,null,null,0,0]
[null,null,null,null,null,null,null,0,0,null,null,null,null,0,0]
[null,null,null,null,null,null,null,0,0,null,null,null,null,0,0]
[null,null,null,null,null,null,null,0,0,null,null,null,null,0,0]
[null,null,null,null,null,null,null,0,0,null,null,null,null,0,0]
[null,null,null,null,null,null,null,0,0,null,null,null,null,0,0]
[null,null,null,null,null,null,null,0,0,null,null,null,null,0,0]
[null,null,null,null,null,null,null,0,0,null,null,null,null,0,0]
[null,null,null,null,null,null,null,0,0,null,null,null,null,0,0]
[null,null,null,null,null,null,null,0,0,null,null,null,null,0,0]
[null,null,null,null,null,null,null,0,0,null,null,null,null,0,0]
[null,null,null,null,null,null,null,0,0,null,null,null,null,0,0]
[null,null,null,null,null,null,null,0,0,null,null,null,null,0,0]
[null,null,null,null,null,null,null,0,0,null,null,null,null,0,0]
[null,null,null,null,null,null,null,0,0,null,null,null,null,0,0]
[null,null,null,null,null,null,null,0,0,null,null,null,null,0,0]
[null,null,null,null,null,null,null,0,0,null,null,null,null,0,0]
[null,null,null,null,null,null,null,0,0,null,null,null,null,0,0]
[null,null,null,null,null,null,null,0,0,null,null,null,null,0,0]
[null,null,null,null,null,null,null,0,0,null,null,null,null,0,0]
[null,null,null,null,null,null,null,0,0,null,null,null,null,0,0]
[null,null,null,null,null,null,null,0,0,null,null,null,null,0,0]
[null,null,null,null,null,null,null,0,0,null,null,null,null,0,0]
[null,null,null,null,null,null,null,0,0,null,null,null,null,0,0]
[null,null,null,null,null,null,null,0,0,null,null,null,null,0,0]
[null,null,null,null,null,null,null,0,0,null,null,null,null,0,0]
[null,null,null,null,null,null,null,0,0,null,null,null,null,0,0]
[null,null,null,null,null,null,null,0,0,null,null,null,null,0,0]
[null,null,null,null,null,null,null,0,0,null,null,null,null,0,0]
[null,null,null,null,null,null,null,0,0,null,null,null,null,0,0]
[null,null,null,null,null,null,null,0,0,null,null,null,null,0,0]
[null,null,null,null,null,null,null,0,0,null,null,null,null,0,0]
[null,null,null,null,null,null,null,0,0,null,null,null,null,0,0]
[null,null,null,null,null,null,null,0,0,null,null,null,null,0,0]
[null,null,null,null,null,null,null,0,0,null,null,null,null,0,0]
[null,null,null,null,null,null,null,0,0,null,null,null,null,0,0]
[null,null,null,null,null,null,null,{"$f":"(B389+D389)-F389","v":0},0,null,null,null,null,{"$f":"L389-M389","v":0},{"$f":"L389-K389","v":0}]
[null,null,null,null,null,null,null,0,0,null,null,null,null,0,0]
[null,null,null,null,null,null,null,0,0,null,null,null,null,0,0]
[null,null,null,null,null,null,null,0,0,null,null,null,null,0,0]
[null,null,null,null,null,null,null,0,0,null,null,null,null,0,0]
[null,null,null,null,null,null,null,0,0,null,null,null,null,0,0]
[null,null,null,null,null,null,null,0,0,null,null,null,null,0,0]
[null,null,null,null,null,null,null,0,0,null,null,null,null,0,0]
[null,null,null,null,null,null,null,0,0,null,null,null,null,0,0]
[null,null,null,null,null,null,null,0,0,null,null,null,null,0,0]
[null,null,null,null,null,null,null,0,0,null,null,null,null,0,0]
[null,null,null,null,null,null,null,0,0,null,null,null,null,0,0]
[null,null,null,null,null,null,null,0,0,null,null,null,null,0,0]
[null,null,null,null,null,null,null,0,0,null,null,null,null,0,0]
[null,null,null,null,null,null,null,0,0,null,null,null,null,0,0]
[null,null,null,null,null,null,null,0,0,null,null,null,null,0,0]
[null,null,null,null,null,null,null,0,0,null,null,null,null,0,0]
[null,null,null,null,null,null,null,0,0,null,null,null,null,0,0]
[null,null,null,null,null,null,null,0,0,null,null,null,null,0,0]
[null,null,null,null,null,null,null,0,0,null,null,null,null,0,0]
[null,null,null,null,null,null,null,0,0,null,null,null,null,0,0]
[null,null,null,null,null,null,null,0,0,null,null,null,null,0,0]
[null,null,null,null,null,null,null,0,0,null,null,null,null,0,0]
[null,null,null,null,null,null,null,0,0,null,null,null,null,0,0]
[null,null,null,null,null,null,null,0,0,null,null,null,null,0,0]
[null,null,null,null,null,null,null,0,0,null,null,null,null,0,0]
[null,null,null,null,null,null,null,0,0,null,null,null,null,0,0]
[null,null,null,null,null,null,null,0,0,null,null,null,null,0,0]
[null,null,null,null,null,null,null,0,0,null,null,null,null,0,0]
[null,null,null,null,null,null,null,0,0,null,null,null,null,0,0]
[null,null,null,null,null,null,null,0,0,null,null,null,null,0,0]
[null,null,null,null,null,null,null,0,0,null,null,null,null,0,0]
[null,null,null,null,null,null,null,0,0,null,null,null,null,0,0]
[null,null,null,null,null,null,null,0,0,null,null,null,null,0,0]
[null,null,null,null,null,null,null,0,0,null,null,null,null,0,0]
[null,null,null,null,null,null,null,0,0,null,null,null,null,0,0]
[null,null,null,null,null,null,null,0,0,null,null,null,null,0,0]
[null,null,null,null,null,null,null,0,0,null,null,null,null,0,0]
[null,null,null,null,null,null,null,0,0,null,null,null,null,0,0]
[null,null,null,null,null,null,null,0,0,null,null,null,null,0,0]
[null,null,null,null,null,null,null,0,0,null,null,null,null,0,0]
[null,null,null,null,null,null,null,0,0,null,null,null,null,0,0]
[null,null,null,null,null,null,null,0,0,null,null,null,null,0,0]
[null,null,null,null,null,null,null,0,0,null,null,null,null,0,0]
[null,null,null,null,null,null,null,0,0,null,null,null,null,0,0]
[null,null,null,null,null,null,null,0,0,null,null,null,null,0,0]
[null,null,null,null,null,null,null,0,0,null,null,null,null,0,0]
[null,null,null,null,null,null,null,0,0,null,null,null,null,0,0]
[null,null,null,null,null,null,null,0,0,null,null,null,null,0,0]
[null,null,null,null,null,null,null,0,0,null,null,null,null,0,0]
[null,null,null,null,null,null,null,0,0,null,null,null,null,0,0]
[null,null,null,null,null,null,null,0,0,null,null,null,null,0,0]
[null,null,null,null,null,null,null,0,0,null,null,null,null,0,0]
[null,null,null,null,null,null,null,0,0,null,null,null,null,0,0]
[null,null,null,null,null,null,null,0,0,null,null,null,null,0,0]
[null,null,null,null,null,null,null,0,0,null,null,null,null,0,0]
[null,null,null,null,null,null,null,0,0,null,null,null,null,0,0]
[null,null,null,null,null,null,null,0,0,null,null,null,null,0,0]
[null,null,null,null,null,null,null,0,0,null,null,null,null,0,0]
[null,null,null,null,null,null,null,0,0,null,null,null,null,0,0]
[null,null,null,null,null,null,null,0,0,null,null,null,null,0,0]
[null,null,null,null,null,null,null,0,0,null,null,null,null,0,0]
[null,null,null,null,null,null,null,0,0,null,null,null,null,0,0]
[null,null,null,null,null,null,null,0,0,null,null,null,null,0,0]
[null,null,null,null,null,null,null,{"$f":"(B453+D453)-F453","v":0},0,null,null,null,null,{"$f":"L453-M453","v":0},{"$f":"L453-K453","v":0}]
[null,null,null,null,null,null,null,0,0,null,null,null,null,0,0]
[null,null,null,null,null,null,null,0,0,null,null,null,null,0,0]
[null,null,null,null,null,null,null,0,0,null,null,null,null,0,0]
[null,null,null,null,null,null,null,0,0,null,null,null,null,0,0]
[null,null,null,null,null,null,null,0,0,null,null,null,null,0,0]
[null,null,null,null,null,null,null,0,0,null,null,null,null,0,0]
[null,null,null,null,null,null,null,0,0,null,null,null,null,0,0]
[null,null,null,null,null,null,null,0,0,null,null,null,null,0,0]
[null,null,null,null,null,null,null,0,0,null,null,null,null,0,0]
[null,null,null,null,null,null,null,0,0,null,null,null,null,0,0]
[null,null,null,null,null,null,null,0,0,null,null,null,null,0,0]
[null,null,null,null,null,null,null,0,0,null,null,null,null,0,0]
[null,null,null,null,null,null,null,0,0,null,null,null,null,0,0]
[null,null,null,null,null,null,null,0,0,null,null,null,null,0,0]
[null,null,null,null,null,null,null,0,0,null,null,null,null,0,0]
[null,null,null,null,null,null,null,0,0,null,null,null,null,0,0]
[null,null,null,null,null,null,null,0,0,null,null,null,null,0,0]
[null,null,null,null,null,null,null,0,0,null,null,null,null,0,0]
[null,null,null,null,null,null,null,0,0,null,null,null,null,0,0]
[null,null,null,null,null,null,null,0,0,null,null,null,null,0,0]
[null,null,null,null,null,null,null,0,0,null,null,null,null,0,0]
[null,null,null,null,null,null,null,0,0,null,null,null,null,0,0]
[null,null,null,null,null,null,null,0,0,null,null,null,null,0,0]
[null,null,null,null,null,null,null,0,0,null,null,null,null,0,0]
[null,null,null,null,null,null,null,0,0,null,null,null,null,0,0]
[null,null,null,null,null,null,null,0,0,null,null,null,null,0,0]
[null,null,null,null,null,null,null,0,0,null,null,null,null,0,0]
[null,null,null,null,null,null,null,0,0,null,null,null,null,0,0]
[null,null,null,null,null,null,null,0,0,null,null,null,null,0,0]
[null,null,null,null,null,null,null,0,0,null,null,null,null,0,0]
[null,null,null,null,null,null,null,0,0,null,null,null,null,0,0]
[null,null,null,null,null,null,null,0,0,null,null,null,null,0,0]
[null,null,null,null,null,null,null,0,0,null,null,null,null,0,0]
[null,null,null,null,null,null,null,0,0,null,null,null,null,0,0]
[null,null,null,null,null,null,null,0,0,null,null,null,null,0,0]
[null,null,null,null,null,null,null,0,0,null,null,null,null,0,0]
[null,null,null,null,null,null,null,0,0,null,null,null,null,0,0]
[null,null,null,null,null,null,null,0,0,null,null,null,null,0,0]
[null,null,null,null,null,null,null,0,0,null,null,null,null,0,0]
[null,null,null,null,null,null,null,0,0,null,null,null,null,0,0]
[null,null,null,null,null,null,null,0,0,null,null,null,null,0,0]
[null,null,null,null,null,null,null,0,0,null,null,null,null,0,0]
[null,null,null,null,null,null,null,0,0,null,null,null,null,0,0]
[null,null,null,null,null,null,null,0,0,null,null,null,null,0,0]
[null,null,null,null,null,null,null,0,0,null,null,null,null,0,0]
[null,null,null,null,null,null,null,0,0,null,null,null,null,0,0]
[null,null,null,null,null,null,null,0,0,null,null,null,null,0,0]
[null,null,null,null,null,null,null,0,0,null,null,null,null,0,0]
[null,null,null,null,null,null,null,0,0,null,null,null,null,0,0]
[null,null,null,null,null,null,null,0,0,null,null,null,null,0,0]
[null,null,null,null,null,null,null,0,0,null,null,null,null,0,0]
[null,null,null,null,null,null,null,0,0,null,null,null,null,0,0]
[null,null,null,null,null,null,null,0,0,null,null,null,null,0,0]
[null,null,null,null,null,null,null,0,0,null,null,null,null,0,0]
[null,null,null,null,null,null,null,0,0,null,null,null,null,0,0]
[null,null,null,null,null,null,null,0,0,null,null,null,null,0,0]
[null,null,null,null,null,null,null,0,0,null,null,null,null,0,0]
[null,null,null,null,null,null,null,0,0,null,null,null,null,0,0]
[null,null,null,null,null,null,null,0,0,null,null,null,null,0,0]
[null,null,null,null,null,null,null,0,0,null,null,null,null,0,0]
[null,null,null,null,null,null,null,0,0,null,null,null,null,0,0]
[null,null,null,null,null,null,null,0,0,null,null,null,null,0,0]
[null,null,null,null,null,null,null,0,0,null,null,null,null,0,0]
[null,null,null,null,null,null,null,{"$f":"(B517+D517)-F517","v":0},0,null,null,null,null,{"$f":"L517-M517","v":0},{"$f":"L517-K517","v":0}]
[null,null,null,null,null,null,null,0,0,null,null,null,null,0,0]
[null,null,null,null,null,null,null,0,0,null,null,null,null,0,0]
[null,null,null,null,null,null,null,0,0,null,null,null,null,0,0]
[null,null,null,null,null,null,null,0,0,null,null,null,null,0,0]
[null,null,null,null,null,null,null,0,0,null,null,null,null,0,0]
[null,null,null,null,null,null,null,0,0,null,null,null,null,0,0]
[null,null,null,null,null,null,null,0,0,null,null,null,null,0,0]
[null,null,null,null,null,null,null,0,0,null,null,null,null,0,0]
[null,null,null,null,null,null,null,0,0,null,null,null,null,0,0]
[null,null,null,null,null,null,null,0,0,null,null,null,null,0,0]
[null,null,null,null,null,null,null,0,0,null,null,null,null,0,0]
[null,null,null,null,null,null,null,0,0,null,null,null,null,0,0]
[null,null,null,null,null,null,null,0,0,null,null,null,null,0,0]
[null,null,null,null,null,null,null,0,0,null,null,null,null,0,0]
[null,null,null,null,null,null,null,0,0,null,null,null,null,0,0]
[null,null,null,null,null,null,null,0,0,null,null,null,null,0,0]
[null,null,null,null,null,null,null,0,0,null,null,null,null,0,0]
[null,null,null,null,null,null,null,0,0,null,null,null,null,0,0]
[null,null,null,null,null,null,null,0,0,null,null,null,null,0,0]
[null,null,null,null,null,null,null,0,0,null,null,null,null,0,0]
[null,null,null,null,null,null,null,0,0,null,null,null,null,0,0]
[null,null,null,null,null,null,null,0,0,null,null,null,null,0,0]
[null,null,null,null,null,null,null,0,0,null,null,null,null,0,0]
[null,null,null,null,null,null,null,0,0,null,null,null,null,0,0]
[null,null,null,null,null,null,null,0,0,null,null,null,null,0,0]
[null,null,null,null,null,null,null,0,0,null,null,null,null,0,0]
[null,null,null,null,null,null,null,0,0,null,null,null,null,0,0]
[null,null,null,null,null,null,null,0,0,null,null,null,null,0,0]
[null,null,null,null,null,null,null,0,0,null,null,null,null,0,0]
[null,null,null,null,null,null,null,0,0,null,null,null,null,0,0]
[null,null,null,null,null,null,null,0,0,null,null,null,null,0,0]
[null,null,null,null,null,null,null,0,0,null,null,null,null,0,0]
[null,null,null,null,null,null,null,0,0,null,null,null,null,0,0]
[null,null,null,null,null,null,null,0,0,null,null,null,null,0,0]
[null,null,null,null,null,null,null,0,0,null,null,null,null,0,0]
[null,null,null,null,null,null,null,0,0,null,null,null,null,0,0]
[null,null,null,null,null,null,null,0,0,null,null,null,null,0,0]
[null,null,null,null,null,null,null,0,0,null,null,null,null,0,0]
[null,null,null,null,null,null,null,0,0,null,null,null,null,0,0]
[null,null,null,null,null,null,null,0,0,null,null,null,null,0,0]
[null,null,null,null,null,null,null,0,0,null,null,null,null,0,0]
[null,null,null,null,null,null,null,0,0,null,null,null,null,0,0]
[null,null,null,null,null,null,null,0,0,null,null,null,null,0,0]
[null,null,null,null,null,null,null,0,0,null,null,null,null,0,0]
[null,null,null,null,null,null,null,0,0,null,null,null,null,0,0]
[null,null,null,null,null,null,null,0,0,null,null,null,null,0,0]
[null,null,null,null,null,null,null,0,0,null,null,null,null,0,0]
[null,null,null,null,null,null,null,0,0,null,null,null,null,0,0]
[null,null,null,null,null,null,null,0,0,null,null,null,null,0,0]
[null,null,null,null,null,null,null,0,0,null,null,null,null,0,0]
[null,null,null,null,null,null,null,0,0,null,null,null,null,0,0]
[null,null,null,null,null,null,null,0,0,null,null,null,null,0,0]
[null,null,null,null,null,null,null,0,0,null,null,null,null,0,0]
[null,null,null,null,null,null,null,0,0,null,null,null,null,0,0]
[null,null,null,null,null,null,null,0,0,null,null,null,null,0,0]
[null,null,null,null,null,null,null,0,0,null,null,null,null,0,0]
[null,null,null,null,null,null,null,0,0,null,null,null,null,0,0]
[null,null,null,null,null,null,null,0,0,null,null,null,null,0,0]
[null,null,null,null,null,null,null,0,0,null,null,null,null,0,0]
[null,null,null,null,null,null,null,0,0,null,null,null,null,0,0]
[null,null,null,null,null,null,null,0,0,null,null,null,null,0,0]
[null,null,null,null,null,null,null,0,0,null,null,null,null,0,0]
[null,null,null,null,null,null,null,0,0,null,null,null,null,0,0]
[null,null,null,null,null,null,null,{"$f":"(B581+D581)-F581","v":0},0,null,null,null,null,{"$f":"L581-M581","v":0},{"$f":"L581-K581","v":0}]
[null,null,null,null,null,null,null,0,0,null,null,null,null,0,0]
[null,null,null,null,null,null,null,0,0,null,null,null,null,0,0]
[null,null,null,null,null,null,null,0,0,null,null,null,null,0,0]
[null,null,null,null,null,null,null,0,0,null,null,null,null,0,0]
[null,null,null,null,null,null,null,0,0,null,null,null,null,0,0]
[null,null,null,null,null,null,null,0,0,null,null,null,null,0,0]
[null,null,null,null,null,null,null,0,0,null,null,null,null,0,0]
[null,null,null,null,null,null,null,0,0,null,null,null,null,0,0]
[null,null,null,null,null,null,null,0,0,null,null,null,null,0,0]
[null,null,null,null,null,null,null,0,0,null,null,null,null,0,0]
[null,null,null,null,null,null,null,0,0,null,null,null,null,0,0]
[null,null,null,null,null,null,null,0,0,null,null,null,null,0,0]
[null,null,null,null,null,null,null,0,0,null,null,null,null,0,0]
[null,null,null,null,null,null,null,0,0,null,null,null,null,0,0]
[null,null,null,null,null,null,null,0,0,null,null,null,null,0,0]
[null,null,null,null,null,null,null,0,0,null,null,null,null,0,0]
[null,null,null,null,null,null,null,0,0,null,null,null,null,0,0]
[null,null,null,null,null,null,null,0,0,null,null,null,null,0,0]
[null,null,null,null,null,null,null,0,0,null,null,null,null,0,0]
[null,null,null,null,null,null,null,0,0,null,null,null,null,0,0]
[null,null,null,null,null,null,null,0,0,null,null,null,null,0,0]
[null,null,null,null,null,null,null,0,0,null,null,null,null,0,0]
[null,null,null,null,null,null,null,0,0,null,null,null,null,0,0]
[null,null,null,null,null,null,null,0,0,null,null,null,null,0,0]
[null,null,null,null,null,null,null,0,0,null,null,null,null,0,0]
[null,null,null,null,null,null,null,0,0,null,null,null,null,0,0]
[null,null,null,null,null,null,null,0,0,null,null,null,null,0,0]
[null,null,null,null,null,null,null,0,0,null,null,null,null,0,0]
[null,null,null,null,null,null,null,0,0,null,null,null,null,0,0]
[null,null,null,null,null,null,null,0,0,null,null,null,null,0,0]
[null,null,null,null,null,null,null,0,0,null,null,null,null,0,0]
[null,null,null,null,null,null,null,0,0,null,null,null,null,0,0]
[null,null,null,null,null,null,null,0,0,null,null,null,null,0,0]
[null,null,null,null,null,null,null,0,0,null,null,null,null,0,0]
[null,null,null,null,null,null,null,0,0,null,null,null,null,0,0]
[null,null,null,null,null,null,null,0,0,null,null,null,null,0,0]
[null,null,null,null,null,null,null,0,0]

{"sheet":"Montly Dakk","index":6,"n_rows":30,"n_cols":10,"rows_kept":30,"cut":false,"hidden":false,"merged":[[2,0,2,3],[2,5,2,8],[3,0,3,3],[3,5,3,8],[6,1,6,2],[6,3,6,4],[6,5,6,6],[6,7,6,8],[7,1,7,2],[7,3,7,4],[7,5,7,6],[7,7,7,8],[8,1,8,2],[8,3,8,4],[8,5,8,6],[8,7,8,8],[9,1,9,2],[9,3,9,4],[9,5,9,6],[9,7,9,8],[10,1,10,2],[10,3,10,4],[10,5,10,6],[10,7,10,8],[13,1,13,2],[13,3,13,4],[13,5,13,6],[13,7,13,8],[14,5,14,6],[14,7,14,8],[17,1,17,2],[17,3,17,4],[17,5,17,6],[17,7,17,8],[22,0,22,8],[23,0,23,8],[24,0,24,8],[25,0,25,8],[0,6,0,8],[0,1,0,5],[18,1,18,2],[18,3,18,4],[18,5,18,6],[18,7,18,8],[19,1,19,2],[19,3,19,4],[19,5,19,6],[19,7,19,8],[14,1,14,2],[14,3,14,4]]}
["    skUl dw nwm:",{"$f":"'Entry Sheet'!B3:F3","v":"srkwrI hweI skUl "},null,null,null,null,"imf fy mIl irport mhInw",null,null,{"$f":"'Entry Sheet'!J3&\"-\"&'Entry Sheet'!J5","v":"Jun-2026"}]
[]
["kul dwKl ividAwrQI (CyvI qo A~TvI q~k)",null,null,null,0,"mhIny dOrwn skUl l~gx vwly idnW dI igxqI   ",null,null,null,{"$f":"'Entry Sheet'!Q9","v":0}]
["mhIny dOrwn b`icAw nUM id~qy gey ku~l Bojn",null,null,null,{"$f":"'Entry Sheet'!H46","v":0},"mhIny dOrwn imf fy mIL dyx vwly idnW dI igxਤੀ    ",null,null,null,{"$f":"J3","v":0}]
[]
["1) kUikMg kwst Aqy Anwj dw vyrvw:-"]
["vyrvw","mu~Flw bkwieAw",null," mhIny dOrwn pRwpqI",null,"ku`l joV",null,"mhIny dOrwn Kpq",null,"bkwieAw"]
["cwvl",{"$f":"'Entry Sheet'!N7","v":200},null,{"$f":"'Entry Sheet'!Q7","v":0},null,{"$f":"B8+D8","v":200},null,{"$f":"'Entry Sheet'!B26","v":0},null,{"$f":"'Entry Sheet'!B31","v":200}]
["kxk",{"$f":"'Entry Sheet'!N5","v":100},null,{"$f":"'Entry Sheet'!Q5","v":0},null,100,null,{"$f":"'Entry Sheet'!A26","v":0},null,{"$f":"'Entry Sheet'!A31","v":100}]
["kuikMg kwst",{"$f":"'Entry Sheet'!B37","v":0},null,{"$f":"'Entry Sheet'!B33","v":0},null,0,null,{"$f":"'Entry Sheet'!B35","v":0},null,{"$f":"F10-H10","v":0}]
["mosmI Pl",0,null,{"$f":"'Bill Print'!H35","v":0},null,{"$f":"B11+D11","v":0},null,{"$f":"'Bill Print'!H35","v":0},null,{"$f":"F11-H11","v":0}]
[]
[" 2) hPqy vwiej  ijnHW b~icAw nUM Pl Kwx leI id~qw igAw:-"]
["pihly hPqy","dUsry  hPqy ",null,"qIsry hPqy ",null,"coQy  hPqy ",null,"pMjvy hPqy ",null,"jOV"]
[{"$f":"'Entry Sheet'!R14","v":0},{"$f":"'Entry Sheet'!R15","v":0},null,{"$f":"'Entry Sheet'!R16","v":0},null,{"$f":"'Entry Sheet'!R17","v":0},null,{"$f":"'Entry Sheet'!R18","v":0},null,{"$f":"A15+B15+D15+F15+H15","v":0}]
[]
[" 3) ku~k km hYlprW dw vyrvw :- "]
["lVI nM","ku~k km hYlpr dw nwm",null,"swl dOrwn pihlw leIAw ieqPwkIAw Cu~tIAw dI igxqI",null,"mhIny dOrwn  leIAw ieqPwkIAw Cu~tIAw dI igxqI",null,"ku~l ieqPwkIAw Cu~tIAw dI igxqI",null,"ivSys kQn"]
[1,null,null,0,null,0,null,{"$f":"D19+F19","v":0},null,"-"]
[2,null,null,0,null,0,null,{"$f":"D20+F20","v":0},null,"-"]
[]
["  4) skUl hYlQ pROgrwm:-"]
["muMifAw dI igxqI (CyvI  qO A~TvI ) ijMnW nUM  mhIny dOrwn  IFA Tablets  id~qIAw  hn",null,null,null,null,null,null,null,null,0]
["kuVIAw dI igxqI (CyvI qO A~TvI ) ijMnW nUM  mhIny dOrwn  IFA Tablets id~qIAw  hn",null,null,null,null,null,null,null,null,0]
["mobwiel hYlQ tIm (RBSK) duAwrw Screen kIqy ividAwrQIAW dI igxqI",null,null,null,null,null,null,null,null,"Nil"]
["mobwiel hYlQ tIm (RBSK) duAwrw Reffer kIqy ividAwrQIAW dI igxqI",null,null,null,null,null,null,null,null,"Nil"]
[]
[]
[]
["     imf fy mIl ieMcwrj dw nwm Aqy mobwiel nM:                                 ",null,null,null,null,null,null,"skUl mu~KI dI mohr Aqy hsqwKr                      "]